Workbook

Sheet Timing Inputs
B3: Timing
C4: First Period Year | E4: 2016
C5: First Period Date | E5: =DATE(E4,12,31) -> 2016-12-31
C6: Last Historic Year | E6: 2019
C7: Valuation Period | E7: =DATE(E6,12,31) -> 2019-12-31
C8: Valuation Period Column Number | E8: =MATCH(E7,'Financial Model'!6:6,0) -> 11
C10: Start of Month by Month | E10: 2020
C11: Months/Period in Model | E11: 1
C13: Quarter by quarter forecast | E13: 2022
C14: Months/Period in Model | E14: 3
C16: Years of Monthly | E16: =E13-E10+1 -> 3
C18: End of Annual | E18: =E6-E4+1 -> 4
C19: Start of Monthly | E19: =E18+1 -> 5
C20: Periods of Monthly | E20: =E16*12 -> 36
C21: End of Monthly | E21: =E18+E20 -> 40
C22: Start of Quarterly | E22: =E21+1 -> 41
C24: Terminal value period | E24: 2028
C25: Terminal value Date | E25: =DATE(E24,12,31) -> 2028-12-31
D29: WACC | E29: % | F29: Cost | G29: AT Cost | H29: WACC
D30: Debt | E30: 0.3 | F30: 0.05 | G30: =F30*(1-0.25) -> 0.0375 | H30: =G30*E30 -> 0.01125
D31: Equity | E31: =1-E30 -> 0.7 | F31: 0.07 | G31: =F31 -> 0.07 | H31: =G31*E31 -> 0.049
D32: Total | H32: =SUM(H30:H31) -> 0.06025

Sheet Scenarios
G1: 1 | H1: 2 | I1: 3 | J1: 4 | K1: 5 | L1: 6 | M1: 7 | N1: 8 | O1: 9 | P1: 10 | Q1: 11 | R1: 12 | S1: 13 | T1: 14 | U1: 15 | V1: 16 | W1: 17 | X1: 18 | Y1: 19 | Z1: 20 | AA1: 21 | AB1: 22 | AC1: 23 | AD1: 24 | AE1: 25 | AF1: 26 | AG1: 27 | AH1: 28 | AI1: 29 | AJ1: 30 | AK1: 31 | AL1: 32 | AM1: 33 | AN1: 34 | AO1: 35 | AP1: 36 | AQ1: 37 | AR1: 38 | AS1: 39 | AT1: 40 | AU1: 41 | AV1: 42 | AW1: 43 | AX1: 44 | AY1: 45 | AZ1: 46 | BA1: 47 | BB1: 48 | BC1: 49 | BD1: 50 | BE1: 51 | BF1: 52 | BG1: 53 | BH1: 54 | BI1: 55 | BJ1: 56 | BK1: 57 | BL1: 58 | BM1: 59 | BN1: 60 | BO1: 61 | BP1: 62 | BQ1: 63 | BR1: 64 | BS1: 65 | BT1: 66 | BU1: 67 | BV1: 68 | BW1: 69 | BX1: 70 | BY1: 71 | BZ1: 72 | CA1: 73 | CB1: 74 | CC1: 75 | CD1: 76 | CE1: 77 | CF1: 78 | CG1: 79 | CH1: 80 | CI1: 81 | CJ1: 82 | CK1: 83 | CL1: 84 | CM1: 85 | CN1: 86 | CO1: 87 | CP1: 88 | CQ1: 89 | CR1: 90 | CS1: 91 | CT1: 92
B2: Time Period | G2: ='Financial Model'!H6 -> 2016-12-31 | H2: ='Financial Model'!I6 -> 2017-12-31 | I2: ='Financial Model'!J6 -> 2018-12-31 | J2: ='Financial Model'!K6 -> 2019-12-31 | K2: ='Financial Model'!L6 -> 2020-01-31 | L2: ='Financial Model'!M6 -> 2020-02-29 | M2: ='Financial Model'!N6 -> 2020-03-31 | N2: ='Financial Model'!O6 -> 2020-04-30 | O2: ='Financial Model'!P6 -> 2020-05-31 | P2: ='Financial Model'!Q6 -> 2020-06-30 | Q2: ='Financial Model'!R6 -> 2020-07-31 | R2: ='Financial Model'!S6 -> 2020-08-31 | S2: ='Financial Model'!T6 -> 2020-09-30 | T2: ='Financial Model'!U6 -> 2020-10-31 | U2: ='Financial Model'!V6 -> 2020-11-30 | V2: ='Financial Model'!W6 -> 2020-12-31 | W2: ='Financial Model'!X6 -> 2021-01-31 | X2: ='Financial Model'!Y6 -> 2021-02-28 | Y2: ='Financial Model'!Z6 -> 2021-03-31 | Z2: ='Financial Model'!AA6 -> 2021-04-30 | AA2: ='Financial Model'!AB6 -> 2021-05-31 | AB2: ='Financial Model'!AC6 -> 2021-06-30 | AC2: ='Financial Model'!AD6 -> 2021-07-31 | AD2: ='Financial Model'!AE6 -> 2021-08-31 | AE2: ='Financial Model'!AF6 -> 2021-09-30 | AF2: ='Financial Model'!AG6 -> 2021-10-31 | AG2: ='Financial Model'!AH6 -> 2021-11-30 | AH2: ='Financial Model'!AI6 -> 2021-12-31 | AI2: ='Financial Model'!AJ6 -> 2022-01-31 | AJ2: ='Financial Model'!AK6 -> 2022-02-28 | AK2: ='Financial Model'!AL6 -> 2022-03-31 | AL2: ='Financial Model'!AM6 -> 2022-04-30 | AM2: ='Financial Model'!AN6 -> 2022-05-31 | AN2: ='Financial Model'!AO6 -> 2022-06-30 | AO2: ='Financial Model'!AP6 -> 2022-07-31 | AP2: ='Financial Model'!AQ6 -> 2022-08-31 | AQ2: ='Financial Model'!AR6 -> 2022-09-30 | AR2: ='Financial Model'!AS6 -> 2022-10-31 | AS2: ='Financial Model'!AT6 -> 2022-11-30 | AT2: ='Financial Model'!AU6 -> 2022-12-31 | AU2: ='Financial Model'!AV6 -> 2023-03-31 | AV2: ='Financial Model'!AW6 -> 2023-06-30 | AW2: ='Financial Model'!AX6 -> 2023-09-30 | AX2: ='Financial Model'!AY6 -> 2023-12-31 | AY2: ='Financial Model'!AZ6 -> 2024-03-31 | AZ2: ='Financial Model'!BA6 -> 2024-06-30 | BA2: ='Financial Model'!BB6 -> 2024-09-30 | BB2: ='Financial Model'!BC6 -> 2024-12-31 | BC2: ='Financial Model'!BD6 -> 2025-03-31 | BD2: ='Financial Model'!BE6 -> 2025-06-30 | BE2: ='Financial Model'!BF6 -> 2025-09-30 | BF2: ='Financial Model'!BG6 -> 2025-12-31 | BG2: ='Financial Model'!BH6 -> 2026-03-31 | BH2: ='Financial Model'!BI6 -> 2026-06-30 | BI2: ='Financial Model'!BJ6 -> 2026-09-30 | BJ2: ='Financial Model'!BK6 -> 2026-12-31 | BK2: ='Financial Model'!BL6 -> 2027-03-31 | BL2: ='Financial Model'!BM6 -> 2027-06-30 | BM2: ='Financial Model'!BN6 -> 2027-09-30 | BN2: ='Financial Model'!BO6 -> 2027-12-31 | BO2: ='Financial Model'!BP6 -> 2028-03-31 | BP2: ='Financial Model'!BQ6 -> 2028-06-30 | BQ2: ='Financial Model'!BR6 -> 2028-09-30 | BR2: ='Financial Model'!BS6 -> 2028-12-31 | BS2: ='Financial Model'!BT6 -> 2029-03-31 | BT2: ='Financial Model'!BU6 -> 2029-06-30 | BU2: ='Financial Model'!BV6 -> 2029-09-30 | BV2: ='Financial Model'!BW6 -> 2029-12-31 | BW2: ='Financial Model'!BX6 -> 2030-03-31 | BX2: ='Financial Model'!BY6 -> 2030-06-30 | BY2: ='Financial Model'!BZ6 -> 2030-09-30 | BZ2: ='Financial Model'!CA6 -> 2030-12-31 | CA2: ='Financial Model'!CB6 -> 2031-03-31 | CB2: ='Financial Model'!CC6 -> 2031-06-30 | CC2: ='Financial Model'!CD6 -> 2031-09-30 | CD2: ='Financial Model'!CE6 -> 2031-12-31 | CE2: ='Financial Model'!CF6 -> 2032-03-31 | CF2: ='Financial Model'!CG6 -> 2032-06-30 | CG2: ='Financial Model'!CH6 -> 2032-09-30 | CH2: ='Financial Model'!CI6 -> 2032-12-31 | CI2: ='Financial Model'!CJ6 -> 2033-03-31 | CJ2: ='Financial Model'!CK6 -> 2033-06-30 | CK2: ='Financial Model'!CL6 -> 2033-09-30 | CL2: ='Financial Model'!CM6 -> 2033-12-31 | CM2: ='Financial Model'!CN6 -> 2034-03-31 | CN2: ='Financial Model'!CO6 -> 2034-06-30 | CO2: ='Financial Model'!CP6 -> 2034-09-30 | CP2: ='Financial Model'!CQ6 -> 2034-12-31 | CQ2: ='Financial Model'!CR6 -> 2035-03-31 | CR2: ='Financial Model'!CS6 -> 2035-06-30 | CS2: ='Financial Model'!CT6 -> 2035-09-30 | CT2: ='Financial Model'!CU6 -> 2035-12-31
B3: Year | G3: =YEAR(G2) -> 2016 | H3: =YEAR(H2) -> 2017 | I3: 2018 | J3: 2019 | K3: 2020 | L3: 2020 | M3: 2020 | N3: 2020 | O3: 2020 | P3: 2020 | Q3: 2020 | R3: 2020 | S3: 2020 | T3: 2020 | U3: 2020 | V3: 2020 | W3: 2021 | X3: 2021 | Y3: 2021 | Z3: 2021 | AA3: 2021 | AB3: 2021 | AC3: 2021 | AD3: 2021 | AE3: 2021 | AF3: 2021 | AG3: 2021 | AH3: 2021 | AI3: 2022 | AJ3: 2022 | AK3: 2022 | AL3: 2022 | AM3: 2022 | AN3: 2022 | AO3: 2022 | AP3: 2022 | AQ3: 2022 | AR3: 2022 | AS3: 2022 | AT3: 2022 | AU3: 2023 | AV3: 2023 | AW3: 2023 | AX3: 2023 | AY3: 2024 | AZ3: 2024 | BA3: 2024 | BB3: 2024 | BC3: 2025 | BD3: 2025 | BE3: 2025 | BF3: 2025 | BG3: 2026 | BH3: 2026 | BI3: 2026 | BJ3: 2026 | BK3: 2027 | BL3: 2027 | BM3: 2027 | BN3: 2027 | BO3: 2028 | BP3: 2028 | BQ3: 2028 | BR3: 2028 | BS3: 2029 | BT3: =YEAR(BT2) -> 2029 | BU3: 2029 | BV3: 2029 | BW3: 2030 | BX3: 2030 | BY3: 2030 | BZ3: 2030 | CA3: 2031 | CB3: 2031 | CC3: 2031 | CD3: 2031 | CE3: 2032 | CF3: 2032 | CG3: 2032 | CH3: 2032 | CI3: 2033 | CJ3: 2033 | CK3: 2033 | CL3: 2033 | CM3: 2034 | CN3: 2034 | CO3: 2034 | CP3: 2034 | CQ3: 2035 | CR3: 2035 | CS3: 2035 | CT3: 2035
B4: Months in Period | G4: ='Financial Model'!H5 -> 12 | H4: ='Financial Model'!I5 -> 12 | I4: ='Financial Model'!J5 -> 12 | J4: ='Financial Model'!K5 -> 12 | K4: ='Financial Model'!L5 -> 1 | L4: ='Financial Model'!M5 -> 1 | M4: ='Financial Model'!N5 -> 1 | N4: ='Financial Model'!O5 -> 1 | O4: ='Financial Model'!P5 -> 1 | P4: ='Financial Model'!Q5 -> 1 | Q4: ='Financial Model'!R5 -> 1 | R4: ='Financial Model'!S5 -> 1 | S4: ='Financial Model'!T5 -> 1 | T4: ='Financial Model'!U5 -> 1 | U4: ='Financial Model'!V5 -> 1 | V4: ='Financial Model'!W5 -> 1 | W4: ='Financial Model'!X5 -> 1 | X4: ='Financial Model'!Y5 -> 1 | Y4: ='Financial Model'!Z5 -> 1 | Z4: ='Financial Model'!AA5 -> 1 | AA4: ='Financial Model'!AB5 -> 1 | AB4: ='Financial Model'!AC5 -> 1 | AC4: ='Financial Model'!AD5 -> 1 | AD4: ='Financial Model'!AE5 -> 1 | AE4: ='Financial Model'!AF5 -> 1 | AF4: ='Financial Model'!AG5 -> 1 | AG4: ='Financial Model'!AH5 -> 1 | AH4: ='Financial Model'!AI5 -> 1 | AI4: ='Financial Model'!AJ5 -> 1 | AJ4: ='Financial Model'!AK5 -> 1 | AK4: ='Financial Model'!AL5 -> 1 | AL4: ='Financial Model'!AM5 -> 1 | AM4: ='Financial Model'!AN5 -> 1 | AN4: ='Financial Model'!AO5 -> 1 | AO4: ='Financial Model'!AP5 -> 1 | AP4: ='Financial Model'!AQ5 -> 1 | AQ4: ='Financial Model'!AR5 -> 1 | AR4: ='Financial Model'!AS5 -> 1 | AS4: ='Financial Model'!AT5 -> 1 | AT4: ='Financial Model'!AU5 -> 1 | AU4: ='Financial Model'!AV5 -> 3 | AV4: ='Financial Model'!AW5 -> 3 | AW4: ='Financial Model'!AX5 -> 3 | AX4: ='Financial Model'!AY5 -> 3 | AY4: ='Financial Model'!AZ5 -> 3 | AZ4: ='Financial Model'!BA5 -> 3 | BA4: ='Financial Model'!BB5 -> 3 | BB4: ='Financial Model'!BC5 -> 3 | BC4: ='Financial Model'!BD5 -> 3 | BD4: ='Financial Model'!BE5 -> 3 | BE4: ='Financial Model'!BF5 -> 3 | BF4: ='Financial Model'!BG5 -> 3 | BG4: ='Financial Model'!BH5 -> 3 | BH4: ='Financial Model'!BI5 -> 3 | BI4: ='Financial Model'!BJ5 -> 3 | BJ4: ='Financial Model'!BK5 -> 3 | BK4: ='Financial Model'!BL5 -> 3 | BL4: ='Financial Model'!BM5 -> 3 | BM4: ='Financial Model'!BN5 -> 3 | BN4: ='Financial Model'!BO5 -> 3 | BO4: ='Financial Model'!BP5 -> 3 | BP4: ='Financial Model'!BQ5 -> 3 | BQ4: ='Financial Model'!BR5 -> 3 | BR4: ='Financial Model'!BS5 -> 3 | BS4: ='Financial Model'!BT5 -> 3 | BT4: ='Financial Model'!BU5 -> 3 | BU4: ='Financial Model'!BV5 -> 3 | BV4: ='Financial Model'!BW5 -> 3 | BW4: ='Financial Model'!BX5 -> 3 | BX4: ='Financial Model'!BY5 -> 3 | BY4: ='Financial Model'!BZ5 -> 3 | BZ4: ='Financial Model'!CA5 -> 3 | CA4: ='Financial Model'!CB5 -> 3 | CB4: ='Financial Model'!CC5 -> 3 | CC4: ='Financial Model'!CD5 -> 3 | CD4: ='Financial Model'!CE5 -> 3 | CE4: ='Financial Model'!CF5 -> 3 | CF4: ='Financial Model'!CG5 -> 3 | CG4: ='Financial Model'!CH5 -> 3 | CH4: ='Financial Model'!CI5 -> 3 | CI4: ='Financial Model'!CJ5 -> 3 | CJ4: ='Financial Model'!CK5 -> 3 | CK4: ='Financial Model'!CL5 -> 3 | CL4: ='Financial Model'!CM5 -> 3 | CM4: ='Financial Model'!CN5 -> 3 | CN4: ='Financial Model'!CO5 -> 3 | CO4: ='Financial Model'!CP5 -> 3 | CP4: ='Financial Model'!CQ5 -> 3 | CQ4: ='Financial Model'!CR5 -> 3 | CR4: ='Financial Model'!CS5 -> 3 | CS4: ='Financial Model'!CT5 -> 3 | CT4: ='Financial Model'!CU5 -> 3
B5: History | G5: ='Financial Model'!H2 -> TRUE | H5: ='Financial Model'!I2 -> TRUE | I5: ='Financial Model'!J2 -> TRUE | J5: ='Financial Model'!K2 -> TRUE | K5: ='Financial Model'!L2 -> FALSE | L5: ='Financial Model'!M2 -> FALSE | M5: ='Financial Model'!N2 -> FALSE | N5: ='Financial Model'!O2 -> FALSE | O5: ='Financial Model'!P2 -> FALSE | P5: ='Financial Model'!Q2 -> FALSE | Q5: ='Financial Model'!R2 -> FALSE | R5: ='Financial Model'!S2 -> FALSE | S5: ='Financial Model'!T2 -> FALSE | T5: ='Financial Model'!U2 -> FALSE | U5: ='Financial Model'!V2 -> FALSE | V5: ='Financial Model'!W2 -> FALSE | W5: ='Financial Model'!X2 -> FALSE | X5: ='Financial Model'!Y2 -> FALSE | Y5: ='Financial Model'!Z2 -> FALSE | Z5: ='Financial Model'!AA2 -> FALSE | AA5: ='Financial Model'!AB2 -> FALSE | AB5: ='Financial Model'!AC2 -> FALSE | AC5: ='Financial Model'!AD2 -> FALSE | AD5: ='Financial Model'!AE2 -> FALSE | AE5: ='Financial Model'!AF2 -> FALSE | AF5: ='Financial Model'!AG2 -> FALSE | AG5: ='Financial Model'!AH2 -> FALSE | AH5: ='Financial Model'!AI2 -> FALSE | AI5: ='Financial Model'!AJ2 -> FALSE | AJ5: ='Financial Model'!AK2 -> FALSE | AK5: ='Financial Model'!AL2 -> FALSE | AL5: ='Financial Model'!AM2 -> FALSE | AM5: ='Financial Model'!AN2 -> FALSE | AN5: ='Financial Model'!AO2 -> FALSE | AO5: ='Financial Model'!AP2 -> FALSE | AP5: ='Financial Model'!AQ2 -> FALSE | AQ5: ='Financial Model'!AR2 -> FALSE | AR5: ='Financial Model'!AS2 -> FALSE | AS5: ='Financial Model'!AT2 -> FALSE | AT5: ='Financial Model'!AU2 -> FALSE | AU5: ='Financial Model'!AV2 -> FALSE | AV5: ='Financial Model'!AW2 -> FALSE | AW5: ='Financial Model'!AX2 -> FALSE | AX5: ='Financial Model'!AY2 -> FALSE | AY5: ='Financial Model'!AZ2 -> FALSE | AZ5: ='Financial Model'!BA2 -> FALSE | BA5: ='Financial Model'!BB2 -> FALSE | BB5: ='Financial Model'!BC2 -> FALSE | BC5: ='Financial Model'!BD2 -> FALSE | BD5: ='Financial Model'!BE2 -> FALSE | BE5: ='Financial Model'!BF2 -> FALSE | BF5: ='Financial Model'!BG2 -> FALSE | BG5: ='Financial Model'!BH2 -> FALSE | BH5: ='Financial Model'!BI2 -> FALSE | BI5: ='Financial Model'!BJ2 -> FALSE | BJ5: ='Financial Model'!BK2 -> FALSE | BK5: ='Financial Model'!BL2 -> FALSE | BL5: ='Financial Model'!BM2 -> FALSE | BM5: ='Financial Model'!BN2 -> FALSE | BN5: ='Financial Model'!BO2 -> FALSE | BO5: ='Financial Model'!BP2 -> FALSE | BP5: ='Financial Model'!BQ2 -> FALSE | BQ5: ='Financial Model'!BR2 -> FALSE | BR5: ='Financial Model'!BS2 -> FALSE | BS5: ='Financial Model'!BT2 -> FALSE | BT5: ='Financial Model'!BU2 -> FALSE | BU5: ='Financial Model'!BV2 -> FALSE | BV5: ='Financial Model'!BW2 -> FALSE | BW5: ='Financial Model'!BX2 -> FALSE | BX5: ='Financial Model'!BY2 -> FALSE | BY5: ='Financial Model'!BZ2 -> FALSE | BZ5: ='Financial Model'!CA2 -> FALSE | CA5: ='Financial Model'!CB2 -> FALSE | CB5: ='Financial Model'!CC2 -> FALSE | CC5: ='Financial Model'!CD2 -> FALSE | CD5: ='Financial Model'!CE2 -> FALSE | CE5: ='Financial Model'!CF2 -> FALSE | CF5: ='Financial Model'!CG2 -> FALSE | CG5: ='Financial Model'!CH2 -> FALSE | CH5: ='Financial Model'!CI2 -> FALSE | CI5: ='Financial Model'!CJ2 -> FALSE | CJ5: ='Financial Model'!CK2 -> FALSE | CK5: ='Financial Model'!CL2 -> FALSE | CL5: ='Financial Model'!CM2 -> FALSE | CM5: ='Financial Model'!CN2 -> FALSE | CN5: ='Financial Model'!CO2 -> FALSE | CO5: ='Financial Model'!CP2 -> FALSE | CP5: ='Financial Model'!CQ2 -> FALSE | CQ5: ='Financial Model'!CR2 -> FALSE | CR5: ='Financial Model'!CS2 -> FALSE | CS5: ='Financial Model'!CT2 -> FALSE | CT5: ='Financial Model'!CU2 -> FALSE
B7: Price Assumptions
C8: Year | G8: 2020 | H8: 2021 | I8: 2022 | J8: 2023 | K8: 2024 | L8: 2025 | M8: 2026 | N8: 2027
C9: Date | G9: =DATE(G8,1,1) -> 2020-01-01 | H9: =DATE(H8,1,1) -> 2021-01-01 | I9: 2022-01-01 | J9: 2023-01-01 | K9: 2024-01-01 | L9: 2025-01-01 | M9: 2026-01-01 | N9: 2027-01-01
C10: Annual Base Case | G10: 24 | H10: 27 | I10: 29 | J10: 32 | K10: 35 | L10: 38 | M10: 42 | N10: 44
C12: Code Number | E12: 1
C14: Graph Flag | F14: 2025-01-01 | G14: =G2<=$F$14 -> TRUE | H14: =H2<=$F$14 -> TRUE | I14: TRUE | J14: TRUE | K14: TRUE | L14: TRUE | M14: TRUE | N14: TRUE | O14: TRUE | P14: TRUE | Q14: TRUE | R14: TRUE | S14: TRUE | T14: TRUE | U14: TRUE | V14: TRUE | W14: TRUE | X14: TRUE | Y14: TRUE | Z14: TRUE | AA14: TRUE | AB14: TRUE | AC14: TRUE | AD14: TRUE | AE14: TRUE | AF14: TRUE | AG14: TRUE | AH14: TRUE | AI14: TRUE | AJ14: TRUE | AK14: TRUE | AL14: TRUE | AM14: TRUE | AN14: TRUE | AO14: TRUE | AP14: TRUE | AQ14: TRUE | AR14: TRUE | AS14: TRUE | AT14: TRUE | AU14: TRUE | AV14: TRUE | AW14: TRUE | AX14: TRUE | AY14: TRUE | AZ14: TRUE | BA14: TRUE | BB14: TRUE | BC14: FALSE | BD14: FALSE | BE14: FALSE | BF14: FALSE | BG14: FALSE | BH14: FALSE | BI14: FALSE | BJ14: FALSE | BK14: FALSE | BL14: FALSE | BM14: FALSE | BN14: FALSE | BO14: FALSE | BP14: FALSE | BQ14: FALSE | BR14: FALSE | BS14: FALSE | BT14: =BT2<=$F$14 -> FALSE | BU14: FALSE | BV14: FALSE | BW14: FALSE | BX14: FALSE | BY14: FALSE | BZ14: FALSE | CA14: FALSE | CB14: FALSE | CC14: FALSE | CD14: FALSE | CE14: FALSE | CF14: FALSE | CG14: FALSE | CH14: FALSE | CI14: FALSE | CJ14: FALSE | CK14: FALSE | CL14: FALSE | CM14: FALSE | CN14: FALSE | CO14: FALSE | CP14: FALSE | CQ14: FALSE | CR14: FALSE | CS14: FALSE | CT14: FALSE
G15: =IF(G14,G2,NA()) -> 2016-12-31 | H15: =IF(H14,H2,NA()) -> 2017-12-31 | I15: 2018-12-31 | J15: 2019-12-31 | K15: 2020-01-31 | L15: 2020-02-29 | M15: 2020-03-31 | N15: 2020-04-30 | O15: 2020-05-31 | P15: 2020-06-30 | Q15: 2020-07-31 | R15: 2020-08-31 | S15: 2020-09-30 | T15: 2020-10-31 | U15: 2020-11-30 | V15: 2020-12-31 | W15: 2021-01-31 | X15: 2021-02-28 | Y15: 2021-03-31 | Z15: 2021-04-30 | AA15: 2021-05-31 | AB15: 2021-06-30 | AC15: 2021-07-31 | AD15: 2021-08-31 | AE15: 2021-09-30 | AF15: 2021-10-31 | AG15: 2021-11-30 | AH15: 2021-12-31 | AI15: 2022-01-31 | AJ15: 2022-02-28 | AK15: 2022-03-31 | AL15: 2022-04-30 | AM15: 2022-05-31 | AN15: 2022-06-30 | AO15: 2022-07-31 | AP15: 2022-08-31 | AQ15: 2022-09-30 | AR15: 2022-10-31 | AS15: 2022-11-30 | AT15: 2022-12-31 | AU15: 2023-03-31 | AV15: 2023-06-30 | AW15: 2023-09-30 | AX15: 2023-12-31 | AY15: 2024-03-31 | AZ15: 2024-06-30 | BA15: 2024-09-30 | BB15: 2024-12-31 | BT15: =IF(BT14,BT2,NA()) -> 
C16: Base Case | G16: =IF(G5,'Financial Model'!H62,interpolate_look_up(G2,9:9,10:10)) -> 27.7813814 | H16: =IF(H5,'Financial Model'!I62,interpolate_look_up(H2,9:9,10:10)) -> 31.4211383 | I16: =IF(I5,'Financial Model'!J62,interpolate_look_up(I2,9:9,10:10)) -> 31.16483913 | J16: =IF(J5,'Financial Model'!K62,interpolate_look_up(J2,9:9,10:10)) -> 27.41424091 | K16: =IF(K5,'Financial Model'!L62,interpolate_look_up(K2,9:9,10:10)) -> 24.23282642 | L16: =IF(L5,'Financial Model'!M62,interpolate_look_up(L2,9:9,10:10)) -> 24.46003872 | M16: =IF(M5,'Financial Model'!N62,interpolate_look_up(M2,9:9,10:10)) -> 24.70527718 | N16: =IF(N5,'Financial Model'!O62,interpolate_look_up(N2,9:9,10:10)) -> 24.94494556 | O16: =IF(O5,'Financial Model'!P62,interpolate_look_up(O2,9:9,10:10)) -> 25.19504575 | P16: =IF(P5,'Financial Model'!Q62,interpolate_look_up(P2,9:9,10:10)) -> 25.43946542 | Q16: =IF(Q5,'Financial Model'!R62,interpolate_look_up(Q2,9:9,10:10)) -> 25.69452371 | R16: =IF(R5,'Financial Model'!S62,interpolate_look_up(R2,9:9,10:10)) -> 25.95213922 | S16: =IF(S5,'Financial Model'!T62,interpolate_look_up(S2,9:9,10:10)) -> 26.20390354 | T16: =IF(T5,'Financial Model'!U62,interpolate_look_up(T2,9:9,10:10)) -> 26.46662614 | U16: =IF(U5,'Financial Model'!V62,interpolate_look_up(U2,9:9,10:10)) -> 26.72338155 | V16: =IF(V5,'Financial Model'!W62,interpolate_look_up(V2,9:9,10:10)) -> 26.99131249 | W16: =IF(W5,'Financial Model'!X62,interpolate_look_up(W2,9:9,10:10)) -> 27.15904678 | X16: =IF(X5,'Financial Model'!Y62,interpolate_look_up(X2,9:9,10:10)) -> 27.3083356 | Y16: =IF(Y5,'Financial Model'!Z62,interpolate_look_up(Y2,9:9,10:10)) -> 27.47457706 | Z16: =IF(Z5,'Financial Model'!AA62,interpolate_look_up(Z2,9:9,10:10)) -> 27.63641939 | AA16: =IF(AA5,'Financial Model'!AB62,interpolate_look_up(AA2,9:9,10:10)) -> 27.80465808 | AB16: =IF(AB5,'Financial Model'!AC62,interpolate_look_up(AB2,9:9,10:10)) -> 27.96844479 | AC16: =IF(AC5,'Financial Model'!AD62,interpolate_look_up(AC2,9:9,10:10)) -> 28.13870471 | AD16: =IF(AD5,'Financial Model'!AE62,interpolate_look_up(AD2,9:9,10:10)) -> 28.3100011 | AE16: =IF(AE5,'Financial Model'!AF62,interpolate_look_up(AE2,9:9,10:10)) -> 28.4767646 | AF16: =IF(AF5,'Financial Model'!AG62,interpolate_look_up(AF2,9:9,10:10)) -> 28.65011895 | AG16: =IF(AG5,'Financial Model'!AH62,interpolate_look_up(AG2,9:9,10:10)) -> 28.81888595 | AH16: =IF(AH5,'Financial Model'!AI62,interpolate_look_up(AH2,9:9,10:10)) -> 28.99432299 | AI16: =IF(AI5,'Financial Model'!AJ62,interpolate_look_up(AI2,9:9,10:10)) -> 29.23558977 | AJ16: =IF(AJ5,'Financial Model'!AK62,interpolate_look_up(AJ2,9:9,10:10)) -> 29.45719999 | AK16: =IF(AK5,'Financial Model'!AL62,interpolate_look_up(AK2,9:9,10:10)) -> 29.70451415 | AL16: =IF(AL5,'Financial Model'!AM62,interpolate_look_up(AL2,9:9,10:10)) -> 29.94582724 | AM16: =IF(AM5,'Financial Model'!AN62,interpolate_look_up(AM2,9:9,10:10)) -> 30.19724377 | AN16: =IF(AN5,'Financial Model'!AO62,interpolate_look_up(AN2,9:9,10:10)) -> 30.4425597 | AO16: =IF(AO5,'Financial Model'!AP62,interpolate_look_up(AO2,9:9,10:10)) -> 30.69814665 | AP16: =IF(AP5,'Financial Model'!AQ62,interpolate_look_up(AP2,9:9,10:10)) -> 30.95587944 | AQ16: =IF(AQ5,'Financial Model'!AR62,interpolate_look_up(AQ2,9:9,10:10)) -> 31.20735835 | AR16: =IF(AR5,'Financial Model'!AS62,interpolate_look_up(AR2,9:9,10:10)) -> 31.46936634 | AS16: =IF(AS5,'Financial Model'!AT62,interpolate_look_up(AS2,9:9,10:10)) -> 31.72501671 | AT16: =IF(AT5,'Financial Model'!AU62,interpolate_look_up(AT2,9:9,10:10)) -> 31.9913708 | AU16: =IF(AU5,'Financial Model'!AV62,interpolate_look_up(AU2,9:9,10:10)) -> 32.7069155 | AV16: =IF(AV5,'Financial Model'!AW62,interpolate_look_up(AV2,9:9,10:10)) -> 33.44586629 | AW16: =IF(AW5,'Financial Model'!AX62,interpolate_look_up(AW2,9:9,10:10)) -> 34.20991022 | AX16: =IF(AX5,'Financial Model'!AY62,interpolate_look_up(AX2,9:9,10:10)) -> 34.99140811 | AY16: =IF(AY5,'Financial Model'!AZ62,interpolate_look_up(AY2,9:9,10:10)) -> 35.714992 | AZ16: =IF(AZ5,'Financial Model'!BA62,interpolate_look_up(AZ2,9:9,10:10)) -> 36.45277992 | BA16: =IF(BA5,'Financial Model'!BB62,interpolate_look_up(BA2,9:9,10:10)) -> 37.21416967 | BB16: =IF(BB5,'Financial Model'!BC62,interpolate_look_up(BB2,9:9,10:10)) -> 37.99146258 | BC16: =IF(BC5,'Financial Model'!BD62,interpolate_look_up(BC2,9:9,10:10)) -> 38.93875673 | BD16: =IF(BD5,'Financial Model'!BE62,interpolate_look_up(BD2,9:9,10:10)) -> 39.92259227 | BE16: =IF(BE5,'Financial Model'!BF62,interpolate_look_up(BE2,9:9,10:10)) -> 40.94251057 | BF16: =IF(BF5,'Financial Model'!BG62,interpolate_look_up(BF2,9:9,10:10)) -> 41.98848513 | BG16: =IF(BG5,'Financial Model'!BH62,interpolate_look_up(BG2,9:9,10:10)) -> 42.47912824 | BH16: =IF(BH5,'Financial Model'!BI62,interpolate_look_up(BH2,9:9,10:10)) -> 42.97467531 | BI16: =IF(BI5,'Financial Model'!BJ62,interpolate_look_up(BI2,9:9,10:10)) -> 43.48154472 | BJ16: =IF(BJ5,'Financial Model'!BK62,interpolate_look_up(BJ2,9:9,10:10)) -> 43.99439247 | BK16: =IF(BK5,'Financial Model'!BL62,interpolate_look_up(BK2,9:9,10:10)) -> 44 | BL16: =IF(BL5,'Financial Model'!BM62,interpolate_look_up(BL2,9:9,10:10)) -> 44 | BM16: =IF(BM5,'Financial Model'!BN62,interpolate_look_up(BM2,9:9,10:10)) -> 44 | BN16: =IF(BN5,'Financial Model'!BO62,interpolate_look_up(BN2,9:9,10:10)) -> 44 | BO16: =IF(BO5,'Financial Model'!BP62,interpolate_look_up(BO2,9:9,10:10)) -> 44 | BP16: =IF(BP5,'Financial Model'!BQ62,interpolate_look_up(BP2,9:9,10:10)) -> 44 | BQ16: =IF(BQ5,'Financial Model'!BR62,interpolate_look_up(BQ2,9:9,10:10)) -> 44 | BR16: =IF(BR5,'Financial Model'!BS62,interpolate_look_up(BR2,9:9,10:10)) -> 44 | BS16: =IF(BS5,'Financial Model'!BT62,interpolate_look_up(BS2,9:9,10:10)) -> 44 | BT16: =IF(BT5,'Financial Model'!BU62,interpolate_look_up(BT2,9:9,10:10)) -> 44 | BU16: =IF(BU5,'Financial Model'!BV62,interpolate_look_up(BU2,9:9,10:10)) -> 44 | BV16: =IF(BV5,'Financial Model'!BW62,interpolate_look_up(BV2,9:9,10:10)) -> 44 | BW16: =IF(BW5,'Financial Model'!BX62,interpolate_look_up(BW2,9:9,10:10)) -> 44 | BX16: =IF(BX5,'Financial Model'!BY62,interpolate_look_up(BX2,9:9,10:10)) -> 44 | BY16: =IF(BY5,'Financial Model'!BZ62,interpolate_look_up(BY2,9:9,10:10)) -> 44 | BZ16: =IF(BZ5,'Financial Model'!CA62,interpolate_look_up(BZ2,9:9,10:10)) -> 44 | CA16: =IF(CA5,'Financial Model'!CB62,interpolate_look_up(CA2,9:9,10:10)) -> 44 | CB16: =IF(CB5,'Financial Model'!CC62,interpolate_look_up(CB2,9:9,10:10)) -> 44 | CC16: =IF(CC5,'Financial Model'!CD62,interpolate_look_up(CC2,9:9,10:10)) -> 44 | CD16: =IF(CD5,'Financial Model'!CE62,interpolate_look_up(CD2,9:9,10:10)) -> 44 | CE16: =IF(CE5,'Financial Model'!CF62,interpolate_look_up(CE2,9:9,10:10)) -> 44 | CF16: =IF(CF5,'Financial Model'!CG62,interpolate_look_up(CF2,9:9,10:10)) -> 44 | CG16: =IF(CG5,'Financial Model'!CH62,interpolate_look_up(CG2,9:9,10:10)) -> 44 | CH16: =IF(CH5,'Financial Model'!CI62,interpolate_look_up(CH2,9:9,10:10)) -> 44 | CI16: =IF(CI5,'Financial Model'!CJ62,interpolate_look_up(CI2,9:9,10:10)) -> 44 | CJ16: =IF(CJ5,'Financial Model'!CK62,interpolate_look_up(CJ2,9:9,10:10)) -> 44 | CK16: =IF(CK5,'Financial Model'!CL62,interpolate_look_up(CK2,9:9,10:10)) -> 44 | CL16: =IF(CL5,'Financial Model'!CM62,interpolate_look_up(CL2,9:9,10:10)) -> 44 | CM16: =IF(CM5,'Financial Model'!CN62,interpolate_look_up(CM2,9:9,10:10)) -> 44 | CN16: =IF(CN5,'Financial Model'!CO62,interpolate_look_up(CN2,9:9,10:10)) -> 44 | CO16: =IF(CO5,'Financial Model'!CP62,interpolate_look_up(CO2,9:9,10:10)) -> 44 | CP16: =IF(CP5,'Financial Model'!CQ62,interpolate_look_up(CP2,9:9,10:10)) -> 44 | CQ16: =IF(CQ5,'Financial Model'!CR62,interpolate_look_up(CQ2,9:9,10:10)) -> 44 | CR16: =IF(CR5,'Financial Model'!CS62,interpolate_look_up(CR2,9:9,10:10)) -> 44 | CS16: =IF(CS5,'Financial Model'!CT62,interpolate_look_up(CS2,9:9,10:10)) -> 44 | CT16: =IF(CT5,'Financial Model'!CU62,interpolate_look_up(CT2,9:9,10:10)) -> 44
C17: Pandemic Case 1 | G17: =IF(G5,G16) -> 27.7813814 | H17: =IF(H5,H16) -> 31.4211383 | I17: =IF(I5,I16) -> 31.16483913 | J17: =IF(J5,J16) -> 27.41424091 | K17: =K16 -> 24.23282642 | L17: =L16 -> 24.46003872 | M17: 24.70527718 | N17: 21 | O17: 21 | P17: 21 | Q17: 21 | R17: 21 | S17: 21 | T17: 21.5 | U17: 21.5 | V17: 21.5 | W17: 21.5 | X17: 21.5 | Y17: 21.5 | Z17: 21.5 | AA17: 21.5 | AB17: 22 | AC17: 22 | AD17: 22 | AE17: 22 | AF17: 22 | AG17: 22 | AH17: 22 | AI17: 22 | AJ17: 22 | AK17: 22 | AL17: 23 | AM17: 23 | AN17: 23 | AO17: 23 | AP17: 24 | AQ17: 24 | AR17: 24 | AS17: 25 | AT17: 26 | AU17: 26 | AV17: 28 | AW17: 29 | AX17: 30 | AY17: 30 | AZ17: =AZ16 -> 36.45277992 | BA17: =BA16 -> 37.21416967 | BB17: 37.99146258 | BC17: 38.93875673 | BD17: 39.92259227 | BE17: 40.94251057 | BF17: 41.98848513 | BG17: 42.47912824 | BH17: 42.97467531 | BI17: 43.48154472 | BJ17: 43.99439247 | BK17: 44 | BL17: 44 | BM17: 44 | BN17: 44 | BO17: 44 | BP17: 44 | BQ17: 44 | BR17: 44 | BS17: 44 | BT17: 44 | BU17: =BU16 -> 44 | BV17: =BV16 -> 44 | BW17: =BW16 -> 44 | BX17: =BX16 -> 44 | BY17: =BY16 -> 44 | BZ17: =BZ16 -> 44 | CA17: =CA16 -> 44 | CB17: =CB16 -> 44 | CC17: =CC16 -> 44 | CD17: =CD16 -> 44 | CE17: =CE16 -> 44 | CF17: =CF16 -> 44 | CG17: =CG16 -> 44 | CH17: =CH16 -> 44 | CI17: =CI16 -> 44 | CJ17: =CJ16 -> 44 | CK17: =CK16 -> 44 | CL17: =CL16 -> 44 | CM17: =CM16 -> 44 | CN17: =CN16 -> 44 | CO17: =CO16 -> 44 | CP17: =CP16 -> 44 | CQ17: =CQ16 -> 44 | CR17: =CR16 -> 44 | CS17: =CS16 -> 44 | CT17: =CT16 -> 44
C18: Pandemic Case 2 | G18: =G17 -> 27.7813814 | H18: =H17 -> 31.4211383 | I18: 31.16483913 | J18: 27.41424091 | K18: 24.23282642 | L18: 24.46003872 | M18: 24.70527718 | N18: =N17 -> 21 | O18: 21 | P18: 21 | Q18: 19 | R18: 19 | S18: 19 | T18: 19 | U18: 19 | V18: 19 | W18: 19 | X18: 18 | Y18: 18 | Z18: 18 | AA18: 18 | AB18: 18 | AC18: 18 | AD18: 18 | AE18: 18 | AF18: 18 | AG18: 17 | AH18: 17 | AI18: 17 | AJ18: 17 | AK18: 17 | AL18: 19 | AM18: 19 | AN18: 19 | AO18: 19 | AP18: 19 | AQ18: 19 | AR18: 19 | AS18: 19 | AT18: 19 | AU18: 19 | AV18: 19 | AW18: 20 | AX18: 20 | AY18: 20 | AZ18: 20 | BA18: 20 | BB18: 20 | BC18: 22 | BD18: 22 | BE18: 22 | BF18: 22 | BG18: 22 | BH18: 22 | BI18: 22 | BJ18: 24 | BK18: 24 | BL18: 24 | BM18: 24 | BN18: 24 | BO18: 27 | BP18: 27 | BQ18: 27 | BR18: 27 | BS18: =BS17*0.9 -> 39.6 | BT18: =BT17*0.9 -> 39.6 | BU18: 39.6 | BV18: 39.6 | BW18: 39.6 | BX18: 39.6 | BY18: 39.6 | BZ18: 39.6 | CA18: 39.6 | CB18: 39.6 | CC18: 39.6 | CD18: 39.6 | CE18: 39.6 | CF18: 39.6 | CG18: 39.6 | CH18: 39.6 | CI18: 39.6 | CJ18: 39.6 | CK18: 39.6 | CL18: 39.6 | CM18: 39.6 | CN18: 39.6 | CO18: 39.6 | CP18: 39.6 | CQ18: 39.6 | CR18: 39.6 | CS18: 39.6 | CT18: 39.6
C19: Pandemic Case 3 | G19: =G18 -> 27.7813814 | H19: 31.4211383 | I19: 31.16483913 | J19: 27.41424091 | K19: 24.23282642 | L19: 24.46003872 | M19: 24.70527718 | N19: 21 | O19: 21 | P19: 21 | Q19: =Q18 -> 19 | R19: 19 | S19: 19 | T19: 19 | U19: 19 | V19: 19 | W19: 19 | X19: 18 | Y19: 18 | Z19: 18 | AA19: 18 | AB19: 16 | AC19: 16 | AD19: 16 | AE19: 16 | AF19: 16 | AG19: 17 | AH19: 17 | AI19: 17 | AJ19: 17 | AK19: 17 | AL19: 19 | AM19: 19 | AN19: 19 | AO19: 19 | AP19: 19 | AQ19: 19 | AR19: 19 | AS19: 19 | AT19: 19 | AU19: 19 | AV19: 19 | AW19: 20 | AX19: 20 | AY19: 20 | AZ19: 20 | BA19: 20 | BB19: 20 | BC19: 22 | BD19: 22 | BE19: 22 | BF19: 22 | BG19: 22 | BH19: 22 | BI19: 22 | BJ19: 24 | BK19: 24 | BL19: =BL16 -> 44 | BM19: =BM16 -> 44 | BN19: 44 | BO19: 44 | BP19: 44 | BQ19: 44 | BR19: 44 | BS19: 44 | BT19: 44 | BU19: 44 | BV19: 44 | BW19: 44 | BX19: 44 | BY19: 44 | BZ19: 44 | CA19: 44 | CB19: 44 | CC19: 44 | CD19: 44 | CE19: 44 | CF19: 44 | CG19: 44 | CH19: 44 | CI19: 44 | CJ19: 44 | CK19: 44 | CL19: 44 | CM19: 44 | CN19: 44 | CO19: 44 | CP19: 44 | CQ19: 44 | CR19: 44 | CS19: 44 | CT19: 44
C21: =INDEX(C16:C19,$E$12) -> Base Case | G21: =INDEX(G16:G19,$E$12) -> 27.7813814 | H21: =INDEX(H16:H19,$E$12) -> 31.4211383 | I21: =INDEX(I16:I19,$E$12) -> 31.16483913 | J21: =INDEX(J16:J19,$E$12) -> 27.41424091 | K21: =INDEX(K16:K19,$E$12) -> 24.23282642 | L21: =INDEX(L16:L19,$E$12) -> 24.46003872 | M21: =INDEX(M16:M19,$E$12) -> 24.70527718 | N21: =INDEX(N16:N19,$E$12) -> 24.94494556 | O21: =INDEX(O16:O19,$E$12) -> 25.19504575 | P21: =INDEX(P16:P19,$E$12) -> 25.43946542 | Q21: =INDEX(Q16:Q19,$E$12) -> 25.69452371 | R21: =INDEX(R16:R19,$E$12) -> 25.95213922 | S21: =INDEX(S16:S19,$E$12) -> 26.20390354 | T21: =INDEX(T16:T19,$E$12) -> 26.46662614 | U21: =INDEX(U16:U19,$E$12) -> 26.72338155 | V21: =INDEX(V16:V19,$E$12) -> 26.99131249 | W21: =INDEX(W16:W19,$E$12) -> 27.15904678 | X21: =INDEX(X16:X19,$E$12) -> 27.3083356 | Y21: =INDEX(Y16:Y19,$E$12) -> 27.47457706 | Z21: =INDEX(Z16:Z19,$E$12) -> 27.63641939 | AA21: =INDEX(AA16:AA19,$E$12) -> 27.80465808 | AB21: =INDEX(AB16:AB19,$E$12) -> 27.96844479 | AC21: =INDEX(AC16:AC19,$E$12) -> 28.13870471 | AD21: =INDEX(AD16:AD19,$E$12) -> 28.3100011 | AE21: =INDEX(AE16:AE19,$E$12) -> 28.4767646 | AF21: =INDEX(AF16:AF19,$E$12) -> 28.65011895 | AG21: =INDEX(AG16:AG19,$E$12) -> 28.81888595 | AH21: =INDEX(AH16:AH19,$E$12) -> 28.99432299 | AI21: =INDEX(AI16:AI19,$E$12) -> 29.23558977 | AJ21: =INDEX(AJ16:AJ19,$E$12) -> 29.45719999 | AK21: =INDEX(AK16:AK19,$E$12) -> 29.70451415 | AL21: =INDEX(AL16:AL19,$E$12) -> 29.94582724 | AM21: =INDEX(AM16:AM19,$E$12) -> 30.19724377 | AN21: =INDEX(AN16:AN19,$E$12) -> 30.4425597 | AO21: =INDEX(AO16:AO19,$E$12) -> 30.69814665 | AP21: =INDEX(AP16:AP19,$E$12) -> 30.95587944 | AQ21: =INDEX(AQ16:AQ19,$E$12) -> 31.20735835 | AR21: =INDEX(AR16:AR19,$E$12) -> 31.46936634 | AS21: =INDEX(AS16:AS19,$E$12) -> 31.72501671 | AT21: =INDEX(AT16:AT19,$E$12) -> 31.9913708 | AU21: =INDEX(AU16:AU19,$E$12) -> 32.7069155 | AV21: =INDEX(AV16:AV19,$E$12) -> 33.44586629 | AW21: =INDEX(AW16:AW19,$E$12) -> 34.20991022 | AX21: =INDEX(AX16:AX19,$E$12) -> 34.99140811 | AY21: =INDEX(AY16:AY19,$E$12) -> 35.714992 | AZ21: =INDEX(AZ16:AZ19,$E$12) -> 36.45277992 | BA21: =INDEX(BA16:BA19,$E$12) -> 37.21416967 | BB21: =INDEX(BB16:BB19,$E$12) -> 37.99146258 | BC21: =INDEX(BC16:BC19,$E$12) -> 38.93875673 | BD21: =INDEX(BD16:BD19,$E$12) -> 39.92259227 | BE21: =INDEX(BE16:BE19,$E$12) -> 40.94251057 | BF21: =INDEX(BF16:BF19,$E$12) -> 41.98848513 | BG21: =INDEX(BG16:BG19,$E$12) -> 42.47912824 | BH21: =INDEX(BH16:BH19,$E$12) -> 42.97467531 | BI21: =INDEX(BI16:BI19,$E$12) -> 43.48154472 | BJ21: =INDEX(BJ16:BJ19,$E$12) -> 43.99439247 | BK21: =INDEX(BK16:BK19,$E$12) -> 44 | BL21: =INDEX(BL16:BL19,$E$12) -> 44 | BM21: =INDEX(BM16:BM19,$E$12) -> 44 | BN21: =INDEX(BN16:BN19,$E$12) -> 44 | BO21: =INDEX(BO16:BO19,$E$12) -> 44 | BP21: =INDEX(BP16:BP19,$E$12) -> 44 | BQ21: =INDEX(BQ16:BQ19,$E$12) -> 44 | BR21: =INDEX(BR16:BR19,$E$12) -> 44 | BS21: =INDEX(BS16:BS19,$E$12) -> 44 | BT21: =INDEX(BT16:BT19,$E$12) -> 44 | BU21: =INDEX(BU16:BU19,$E$12) -> 44 | BV21: =INDEX(BV16:BV19,$E$12) -> 44 | BW21: =INDEX(BW16:BW19,$E$12) -> 44 | BX21: =INDEX(BX16:BX19,$E$12) -> 44 | BY21: =INDEX(BY16:BY19,$E$12) -> 44 | BZ21: =INDEX(BZ16:BZ19,$E$12) -> 44 | CA21: =INDEX(CA16:CA19,$E$12) -> 44 | CB21: =INDEX(CB16:CB19,$E$12) -> 44 | CC21: =INDEX(CC16:CC19,$E$12) -> 44 | CD21: =INDEX(CD16:CD19,$E$12) -> 44 | CE21: =INDEX(CE16:CE19,$E$12) -> 44 | CF21: =INDEX(CF16:CF19,$E$12) -> 44 | CG21: =INDEX(CG16:CG19,$E$12) -> 44 | CH21: =INDEX(CH16:CH19,$E$12) -> 44 | CI21: =INDEX(CI16:CI19,$E$12) -> 44 | CJ21: =INDEX(CJ16:CJ19,$E$12) -> 44 | CK21: =INDEX(CK16:CK19,$E$12) -> 44 | CL21: =INDEX(CL16:CL19,$E$12) -> 44 | CM21: =INDEX(CM16:CM19,$E$12) -> 44 | CN21: =INDEX(CN16:CN19,$E$12) -> 44 | CO21: =INDEX(CO16:CO19,$E$12) -> 44 | CP21: =INDEX(CP16:CP19,$E$12) -> 44 | CQ21: =INDEX(CQ16:CQ19,$E$12) -> 44 | CR21: =INDEX(CR16:CR19,$E$12) -> 44 | CS21: =INDEX(CS16:CS19,$E$12) -> 44 | CT21: =INDEX(CT16:CT19,$E$12) -> 44
B23: Quantity Assumptions
C24: Year | G24: =G3 -> 2016 | H24: =G24+1 -> 2017 | I24: =H24+1 -> 2018 | J24: 2019 | K24: 2020 | L24: 2021 | M24: 2022 | N24: 2023 | O24: 2030 | P24: 2035 | Q24: 2040
C25: Date | G25: =DATE(G24,12,31) -> 2016-12-31 | H25: =DATE(H24,12,31) -> 2017-12-31 | I25: 2018-12-31 | J25: 2019-12-31 | K25: 2020-12-31 | L25: 2021-12-31 | M25: 2022-12-31 | N25: 2023-12-31 | O25: =DATE(O24,12,31) -> 2030-12-31 | P25: 2035-12-31 | Q25: 2040-12-31
C27: Code Number | E27: 1
C29: Annual Base Case | G29: ='Financial Model'!H61 -> 430000 | H29: ='Financial Model'!I61 -> 470000 | I29: ='Financial Model'!J61 -> 460000 | J29: ='Financial Model'!K61 -> 440000 | K29: 440000 | L29: 460000 | M29: 470000 | N29: 480000 | O29: 500000 | P29: 510000 | Q29: 540000
C30: Pandemic Case 1 | G30: =G29 -> 430000 | H30: =H29 -> 470000 | I30: 460000 | J30: 440000 | K30: 420000 | L30: 450000 | M30: 470000 | N30: 480000 | O30: =O29 -> 500000 | P30: 510000 | Q30: 540000
C31: Pandemic Case 2 | G31: =G30 -> 430000 | H31: 470000 | I31: 460000 | J31: 440000 | K31: 410000 | L31: 430000 | M31: =M30*0.95 -> 446500 | N31: =N30*0.95 -> 456000 | O31: 475000 | P31: 484500 | Q31: 513000
C32: Pandemic Case 3 | G32: =G31 -> 430000 | H32: 470000 | I32: 460000 | J32: 440000 | K32: 400000 | L32: 420000 | M32: 446500 | N32: 456000 | O32: =O31 -> 475000 | P32: 484500 | Q32: 513000
C34: =INDEX(C29:C32,$E$27) -> Annual Base Case | G34: =INDEX(G29:G32,$E$27) -> 430000 | H34: =INDEX(H29:H32,$E$27) -> 470000 | I34: =INDEX(I29:I32,$E$27) -> 460000 | J34: =INDEX(J29:J32,$E$27) -> 440000 | K34: =INDEX(K29:K32,$E$27) -> 440000 | L34: =INDEX(L29:L32,$E$27) -> 460000 | M34: =INDEX(M29:M32,$E$27) -> 470000 | N34: =INDEX(N29:N32,$E$27) -> 480000 | O34: =INDEX(O29:O32,$E$27) -> 500000 | P34: =INDEX(P29:P32,$E$27) -> 510000 | Q34: =INDEX(Q29:Q32,$E$27) -> 540000
B36: Variable Cost
C37: Year | G37: =G24 -> 2016 | H37: =H24 -> 2017 | I37: 2018 | J37: 2019 | K37: 2020 | L37: 2021 | M37: 2022 | N37: 2023 | O37: 2030 | P37: 2040 | Q37: 2045
C38: Date | G38: =G25 -> 2016-12-31 | H38: =H25 -> 2017-12-31 | I38: 2018-12-31 | J38: 2019-12-31 | K38: 2020-12-31 | L38: 2021-12-31 | M38: 2022-12-31 | N38: 2023-12-31 | O38: =O25 -> 2030-12-31 | P38: 2035-12-31 | Q38: 2040-12-31
C40: Variable Cost | G40: ='Financial Model'!H65 -> 9 | H40: ='Financial Model'!I65 -> 9.18 | I40: ='Financial Model'!J65 -> 9.3636 | J40: ='Financial Model'!K65 -> 9.550872 | K40: 9.4 | L40: =K40*1.015 -> 9.541 | M40: =L40*1.015 -> 9.684115 | N40: 9.829376725 | O40: =N40*1.015 -> 9.976817376 | P40: =O40*1.015 -> 10.12646964 | Q40: =P40*1.015 -> 10.27836668
C42: Fixed Cost | G42: ='Financial Model'!H67 -> 5681218 | H42: ='Financial Model'!I67 -> 4379472 | I42: ='Financial Model'!J67 -> 6155587 | J42: ='Financial Model'!K67 -> 6247983.32 | K42: =J42*0.98 -> 6123023.654 | L42: =K42*1.01 -> 6184253.89 | M42: 6246096.429 | N42: 6308557.393 | O42: =N42*1.01 -> 6371642.967 | P42: =O42*1.01 -> 6435359.397 | Q42: =P42*1.01 -> 6499712.991

Sheet Financial Model
D1: Period | H1: 1 | I1: 2 | J1: 3 | K1: 4 | L1: 5 | M1: 6 | N1: 7 | O1: 8 | P1: 9 | Q1: 10 | R1: 11 | S1: 12 | T1: 13 | U1: 14 | V1: 15 | W1: 16 | X1: 17 | Y1: 18 | Z1: 19 | AA1: 20 | AB1: 21 | AC1: 22 | AD1: 23 | AE1: 24 | AF1: 25 | AG1: 26 | AH1: 27 | AI1: 28 | AJ1: 29 | AK1: 30 | AL1: 31 | AM1: 32 | AN1: 33 | AO1: 34 | AP1: 35 | AQ1: 36 | AR1: 37 | AS1: 38 | AT1: 39 | AU1: 40 | AV1: 41 | AW1: 42 | AX1: 43 | AY1: 44 | AZ1: 45 | BA1: 46 | BB1: 47 | BC1: 48 | BD1: 49 | BE1: 50 | BF1: 51 | BG1: 52 | BH1: 53 | BI1: 54 | BJ1: 55 | BK1: 56 | BL1: 57 | BM1: 58 | BN1: 59 | BO1: 60 | BP1: 61 | BQ1: 62 | BR1: 63 | BS1: 64 | BT1: 65 | BU1: 66 | BV1: 67 | BW1: 68 | BX1: 69 | BY1: 70 | BZ1: 71 | CA1: 72 | CB1: 73 | CC1: 74 | CD1: 75 | CE1: 76 | CF1: 77 | CG1: 78 | CH1: 79 | CI1: 80 | CJ1: 81 | CK1: 82 | CL1: 83 | CM1: 84 | CN1: 85 | CO1: 86 | CP1: 87 | CQ1: 88 | CR1: 89 | CS1: 90 | CT1: 91 | CU1: 92
D2: Annual Period | E2: ='Timing Inputs'!E18 -> 4 | H2: =H1<=$E$2 -> TRUE | I2: TRUE | J2: TRUE | K2: TRUE | L2: FALSE | M2: FALSE | N2: FALSE | O2: FALSE | P2: FALSE | Q2: FALSE | R2: FALSE | S2: FALSE | T2: FALSE | U2: FALSE | V2: FALSE | W2: FALSE | X2: FALSE | Y2: FALSE | Z2: FALSE | AA2: FALSE | AB2: FALSE | AC2: FALSE | AD2: FALSE | AE2: FALSE | AF2: FALSE | AG2: FALSE | AH2: FALSE | AI2: FALSE | AJ2: FALSE | AK2: FALSE | AL2: FALSE | AM2: FALSE | AN2: =AN1<=$E$2 -> FALSE | AO2: FALSE | AP2: FALSE | AQ2: FALSE | AR2: FALSE | AS2: FALSE | AT2: FALSE | AU2: FALSE | AV2: FALSE | AW2: FALSE | AX2: FALSE | AY2: FALSE | AZ2: FALSE | BA2: FALSE | BB2: FALSE | BC2: FALSE | BD2: FALSE | BE2: FALSE | BF2: FALSE | BG2: FALSE | BH2: FALSE | BI2: FALSE | BJ2: FALSE | BK2: FALSE | BL2: FALSE | BM2: FALSE | BN2: FALSE | BO2: FALSE | BP2: FALSE | BQ2: FALSE | BR2: FALSE | BS2: FALSE | BT2: =BT1<=$E$2 -> FALSE | BU2: FALSE | BV2: FALSE | BW2: FALSE | BX2: FALSE | BY2: FALSE | BZ2: FALSE | CA2: FALSE | CB2: FALSE | CC2: FALSE | CD2: FALSE | CE2: FALSE | CF2: FALSE | CG2: FALSE | CH2: FALSE | CI2: FALSE | CJ2: FALSE | CK2: FALSE | CL2: FALSE | CM2: FALSE | CN2: FALSE | CO2: FALSE | CP2: FALSE | CQ2: FALSE | CR2: FALSE | CS2: FALSE | CT2: FALSE | CU2: FALSE
D3: Monthly Period | E3: ='Timing Inputs'!E19 -> 5 | F3: ='Timing Inputs'!E21 -> 40 | H3: =AND(H1>=$E$3,H1<=$F$3) -> FALSE | I3: FALSE | J3: FALSE | K3: FALSE | L3: TRUE | M3: TRUE | N3: TRUE | O3: TRUE | P3: TRUE | Q3: TRUE | R3: TRUE | S3: TRUE | T3: TRUE | U3: TRUE | V3: TRUE | W3: TRUE | X3: TRUE | Y3: TRUE | Z3: TRUE | AA3: TRUE | AB3: TRUE | AC3: TRUE | AD3: TRUE | AE3: TRUE | AF3: TRUE | AG3: TRUE | AH3: TRUE | AI3: TRUE | AJ3: TRUE | AK3: TRUE | AL3: TRUE | AM3: TRUE | AN3: =AND(AN1>=$E$3,AN1<=$F$3) -> TRUE | AO3: TRUE | AP3: TRUE | AQ3: TRUE | AR3: TRUE | AS3: TRUE | AT3: TRUE | AU3: TRUE | AV3: FALSE | AW3: FALSE | AX3: FALSE | AY3: FALSE | AZ3: FALSE | BA3: FALSE | BB3: FALSE | BC3: FALSE | BD3: FALSE | BE3: FALSE | BF3: FALSE | BG3: FALSE | BH3: FALSE | BI3: FALSE | BJ3: FALSE | BK3: FALSE | BL3: FALSE | BM3: FALSE | BN3: FALSE | BO3: FALSE | BP3: FALSE | BQ3: FALSE | BR3: FALSE | BS3: FALSE | BT3: =AND(BT1>=$E$3,BT1<=$F$3) -> FALSE | BU3: FALSE | BV3: FALSE | BW3: FALSE | BX3: FALSE | BY3: FALSE | BZ3: FALSE | CA3: FALSE | CB3: FALSE | CC3: FALSE | CD3: FALSE | CE3: FALSE | CF3: FALSE | CG3: FALSE | CH3: FALSE | CI3: FALSE | CJ3: FALSE | CK3: FALSE | CL3: FALSE | CM3: FALSE | CN3: FALSE | CO3: FALSE | CP3: FALSE | CQ3: FALSE | CR3: FALSE | CS3: FALSE | CT3: FALSE | CU3: FALSE
D4: Quarterly Period | E4: ='Timing Inputs'!E22 -> 41 | H4: =H1>=$E$4 -> FALSE | I4: FALSE | J4: FALSE | K4: FALSE | L4: FALSE | M4: FALSE | N4: FALSE | O4: FALSE | P4: FALSE | Q4: FALSE | R4: FALSE | S4: FALSE | T4: FALSE | U4: FALSE | V4: FALSE | W4: FALSE | X4: FALSE | Y4: FALSE | Z4: FALSE | AA4: FALSE | AB4: FALSE | AC4: FALSE | AD4: FALSE | AE4: FALSE | AF4: FALSE | AG4: FALSE | AH4: FALSE | AI4: FALSE | AJ4: FALSE | AK4: FALSE | AL4: FALSE | AM4: FALSE | AN4: =AN1>=$E$4 -> FALSE | AO4: FALSE | AP4: FALSE | AQ4: FALSE | AR4: FALSE | AS4: FALSE | AT4: FALSE | AU4: FALSE | AV4: TRUE | AW4: TRUE | AX4: TRUE | AY4: TRUE | AZ4: TRUE | BA4: TRUE | BB4: TRUE | BC4: TRUE | BD4: TRUE | BE4: TRUE | BF4: TRUE | BG4: TRUE | BH4: TRUE | BI4: TRUE | BJ4: TRUE | BK4: TRUE | BL4: TRUE | BM4: TRUE | BN4: TRUE | BO4: TRUE | BP4: TRUE | BQ4: TRUE | BR4: TRUE | BS4: TRUE | BT4: =BT1>=$E$4 -> TRUE | BU4: TRUE | BV4: TRUE | BW4: TRUE | BX4: TRUE | BY4: TRUE | BZ4: TRUE | CA4: TRUE | CB4: TRUE | CC4: TRUE | CD4: TRUE | CE4: TRUE | CF4: TRUE | CG4: TRUE | CH4: TRUE | CI4: TRUE | CJ4: TRUE | CK4: TRUE | CL4: TRUE | CM4: TRUE | CN4: TRUE | CO4: TRUE | CP4: TRUE | CQ4: TRUE | CR4: TRUE | CS4: TRUE | CT4: TRUE | CU4: TRUE
D5: Months in Period | E5: 12 | F5: 1 | G5: 3 | H5: =H2*$E$5+H3*$F$5+H4*$G$5 -> 12 | I5: 12 | J5: 12 | K5: 12 | L5: 1 | M5: 1 | N5: 1 | O5: 1 | P5: 1 | Q5: 1 | R5: 1 | S5: 1 | T5: 1 | U5: 1 | V5: 1 | W5: 1 | X5: 1 | Y5: 1 | Z5: 1 | AA5: 1 | AB5: 1 | AC5: 1 | AD5: 1 | AE5: 1 | AF5: 1 | AG5: 1 | AH5: 1 | AI5: 1 | AJ5: 1 | AK5: 1 | AL5: 1 | AM5: 1 | AN5: =AN2*$E$5+AN3*$F$5+AN4*$G$5 -> 1 | AO5: 1 | AP5: 1 | AQ5: 1 | AR5: 1 | AS5: 1 | AT5: 1 | AU5: 1 | AV5: 3 | AW5: 3 | AX5: 3 | AY5: 3 | AZ5: 3 | BA5: 3 | BB5: 3 | BC5: 3 | BD5: 3 | BE5: 3 | BF5: 3 | BG5: 3 | BH5: 3 | BI5: 3 | BJ5: 3 | BK5: 3 | BL5: 3 | BM5: 3 | BN5: 3 | BO5: 3 | BP5: 3 | BQ5: 3 | BR5: 3 | BS5: 3 | BT5: =BT2*$E$5+BT3*$F$5+BT4*$G$5 -> 3 | BU5: 3 | BV5: 3 | BW5: 3 | BX5: 3 | BY5: 3 | BZ5: 3 | CA5: 3 | CB5: 3 | CC5: 3 | CD5: 3 | CE5: 3 | CF5: 3 | CG5: 3 | CH5: 3 | CI5: 3 | CJ5: 3 | CK5: 3 | CL5: 3 | CM5: 3 | CN5: 3 | CO5: 3 | CP5: 3 | CQ5: 3 | CR5: 3 | CS5: 3 | CT5: 3 | CU5: 3
D6: Date | G6: =EDATE('Timing Inputs'!E5,-12) -> 2015-12-31 | H6: =EOMONTH(G6,H5) -> 2016-12-31 | I6: 2017-12-31 | J6: 2018-12-31 | K6: 2019-12-31 | L6: 2020-01-31 | M6: 2020-02-29 | N6: 2020-03-31 | O6: 2020-04-30 | P6: 2020-05-31 | Q6: 2020-06-30 | R6: 2020-07-31 | S6: 2020-08-31 | T6: 2020-09-30 | U6: 2020-10-31 | V6: 2020-11-30 | W6: 2020-12-31 | X6: 2021-01-31 | Y6: 2021-02-28 | Z6: 2021-03-31 | AA6: 2021-04-30 | AB6: 2021-05-31 | AC6: 2021-06-30 | AD6: 2021-07-31 | AE6: 2021-08-31 | AF6: 2021-09-30 | AG6: 2021-10-31 | AH6: 2021-11-30 | AI6: 2021-12-31 | AJ6: 2022-01-31 | AK6: 2022-02-28 | AL6: 2022-03-31 | AM6: 2022-04-30 | AN6: =EOMONTH(AM6,AN5) -> 2022-05-31 | AO6: 2022-06-30 | AP6: 2022-07-31 | AQ6: 2022-08-31 | AR6: 2022-09-30 | AS6: 2022-10-31 | AT6: 2022-11-30 | AU6: 2022-12-31 | AV6: 2023-03-31 | AW6: 2023-06-30 | AX6: 2023-09-30 | AY6: 2023-12-31 | AZ6: 2024-03-31 | BA6: 2024-06-30 | BB6: 2024-09-30 | BC6: 2024-12-31 | BD6: 2025-03-31 | BE6: 2025-06-30 | BF6: 2025-09-30 | BG6: 2025-12-31 | BH6: 2026-03-31 | BI6: 2026-06-30 | BJ6: 2026-09-30 | BK6: 2026-12-31 | BL6: 2027-03-31 | BM6: 2027-06-30 | BN6: 2027-09-30 | BO6: 2027-12-31 | BP6: 2028-03-31 | BQ6: 2028-06-30 | BR6: 2028-09-30 | BS6: 2028-12-31 | BT6: =EOMONTH(BS6,BT5) -> 2029-03-31 | BU6: 2029-06-30 | BV6: 2029-09-30 | BW6: 2029-12-31 | BX6: 2030-03-31 | BY6: 2030-06-30 | BZ6: 2030-09-30 | CA6: 2030-12-31 | CB6: 2031-03-31 | CC6: 2031-06-30 | CD6: 2031-09-30 | CE6: 2031-12-31 | CF6: 2032-03-31 | CG6: 2032-06-30 | CH6: 2032-09-30 | CI6: 2032-12-31 | CJ6: 2033-03-31 | CK6: 2033-06-30 | CL6: 2033-09-30 | CM6: 2033-12-31 | CN6: 2034-03-31 | CO6: 2034-06-30 | CP6: 2034-09-30 | CQ6: 2034-12-31 | CR6: 2035-03-31 | CS6: 2035-06-30 | CT6: 2035-09-30 | CU6: 2035-12-31
D7: Historic period | E7: ='Timing Inputs'!E6 -> 2019 | H7: =H6<=$E$7 -> FALSE | I7: FALSE | J7: FALSE | K7: FALSE | L7: FALSE | M7: FALSE | N7: FALSE | O7: FALSE | P7: FALSE | Q7: FALSE | R7: FALSE | S7: FALSE | T7: FALSE | U7: FALSE | V7: FALSE | W7: FALSE | X7: FALSE | Y7: FALSE | Z7: FALSE | AA7: FALSE | AB7: FALSE | AC7: FALSE | AD7: FALSE | AE7: FALSE | AF7: FALSE | AG7: FALSE | AH7: FALSE | AI7: FALSE | AJ7: FALSE | AK7: FALSE | AL7: FALSE | AM7: FALSE | AN7: =AN6<=$E$7 -> FALSE | AO7: FALSE | AP7: FALSE | AQ7: FALSE | AR7: FALSE | AS7: FALSE | AT7: FALSE | AU7: FALSE | AV7: FALSE | AW7: FALSE | AX7: FALSE | AY7: FALSE | AZ7: FALSE | BA7: FALSE | BB7: FALSE | BC7: FALSE | BD7: FALSE | BE7: FALSE | BF7: FALSE | BG7: FALSE | BH7: FALSE | BI7: FALSE | BJ7: FALSE | BK7: FALSE | BL7: FALSE | BM7: FALSE | BN7: FALSE | BO7: FALSE | BP7: FALSE | BQ7: FALSE | BR7: FALSE | BS7: FALSE | BT7: =BT6<=$E$7 -> FALSE | BU7: FALSE | BV7: FALSE | BW7: FALSE | BX7: FALSE | BY7: FALSE | BZ7: FALSE | CA7: FALSE | CB7: FALSE | CC7: FALSE | CD7: FALSE | CE7: FALSE | CF7: FALSE | CG7: FALSE | CH7: FALSE | CI7: FALSE | CJ7: FALSE | CK7: FALSE | CL7: FALSE | CM7: FALSE | CN7: FALSE | CO7: FALSE | CP7: FALSE | CQ7: FALSE | CR7: FALSE | CS7: FALSE | CT7: FALSE | CU7: FALSE
D8: Terminal period | E8: ='Timing Inputs'!E24 -> 2028 | H8: =$E$8=H6 -> FALSE | I8: FALSE | J8: FALSE | K8: FALSE | L8: FALSE | M8: FALSE | N8: FALSE | O8: FALSE | P8: FALSE | Q8: FALSE | R8: FALSE | S8: FALSE | T8: FALSE | U8: FALSE | V8: FALSE | W8: FALSE | X8: FALSE | Y8: FALSE | Z8: FALSE | AA8: FALSE | AB8: FALSE | AC8: FALSE | AD8: FALSE | AE8: FALSE | AF8: FALSE | AG8: FALSE | AH8: FALSE | AI8: FALSE | AJ8: FALSE | AK8: FALSE | AL8: FALSE | AM8: FALSE | AN8: =$E$8=AN6 -> FALSE | AO8: FALSE | AP8: FALSE | AQ8: FALSE | AR8: FALSE | AS8: FALSE | AT8: FALSE | AU8: FALSE | AV8: FALSE | AW8: FALSE | AX8: FALSE | AY8: FALSE | AZ8: FALSE | BA8: FALSE | BB8: FALSE | BC8: FALSE | BD8: FALSE | BE8: FALSE | BF8: FALSE | BG8: FALSE | BH8: FALSE | BI8: FALSE | BJ8: FALSE | BK8: FALSE | BL8: FALSE | BM8: FALSE | BN8: FALSE | BO8: FALSE | BP8: FALSE | BQ8: FALSE | BR8: FALSE | BS8: FALSE | BT8: =$E$8=BT6 -> FALSE | BU8: FALSE | BV8: FALSE | BW8: FALSE | BX8: FALSE | BY8: FALSE | BZ8: FALSE | CA8: FALSE | CB8: FALSE | CC8: FALSE | CD8: FALSE | CE8: FALSE | CF8: FALSE | CG8: FALSE | CH8: FALSE | CI8: FALSE | CJ8: FALSE | CK8: FALSE | CL8: FALSE | CM8: FALSE | CN8: FALSE | CO8: FALSE | CP8: FALSE | CQ8: FALSE | CR8: FALSE | CS8: FALSE | CT8: FALSE | CU8: FALSE
B10: History
C11: Income Statement
D12: Revenue | H12: 11945994 | I12: 14767935 | J12: 14335826 | K12: 12062266
D13: Cash Expenses | H13: 9551218 | I13: 8694072 | J13: 10462843 | K13: 10450367
D14: EBITDA | H14: =H12-H13 -> 2394776 | I14: =I12-I13 -> 6073863 | J14: =J12-J13 -> 3872983 | K14: =K12-K13 -> 1611899
D15: Depreciation and Amortisation | H15: 1119172 | I15: 1225048 | J15: 1136234 | K15: 1206013
D16: EBIT | H16: 1275604 | I16: 4848815 | J16: 2736749 | K16: 405886
D17: Interest | H17: =H16-H18 -> 420330 | I17: =I16-I18 -> 424372 | J17: 159027 | K17: 154570
D18: Profit before tax* | H18: 855274 | I18: 4424443 | J18: 2577722 | K18: 251316
D19: Tax Expense | H19: -163896 | I19: 479053 | J19: 491547 | K19: -23569
D20: Profit after tax* | H20: 1019170 | I20: 3945390 | J20: 2086175 | K20: 274885
D21: Perpetual sukuk* | H21: 0 | I21: -2724 | J21: -124300 | K21: -124300
D22: Non controlling interests* | H22: -35756 | I22: -42087 | J22: -33624 | K22: -28952
D23: Profit from continuing operations | H23: 983414 | I23: 3900579 | J23: 1928251 | K23: 121633
D24: Loss from discontinuing operations | H24: -16235 | I24: -393480 | J24: -200772 | K24: -321793
D25: Profit attributable to equity holders of the Company | H25: 967179 | I25: 3507099 | J25: 1727479 | K25: -200160
C27: FINANCIAL POSITION
D28: Non current assets | H28: 23732635 | I28: 23794526 | J28: 22517962 | K28: 23541567
D29: Current assets excluding Cash | H29: 4064272 | I29: 4763309 | J29: 4391511 | K29: 4012270
D30: Assets held for sale | H30: 3862 | I30: 183594 | J30: 218964 | K30: 522538
D31: Cash | H31: 636340 | I31: 713448 | J31: 363238 | K31: 431347
D32: Total assets | H32: =SUM(H28:H31) -> 28437109 | I32: =SUM(I28:I31) -> 29454877 | J32: =SUM(J28:J31) -> 27491675 | K32: =SUM(K28:K31) -> 28507722
D34: Current Liabilities | H34: 12867607 | I34: 6578200 | J34: 4642482 | K34: 4866338
D35: Borrowings | H35: 5522365 | I35: 7737927 | J35: 6489398 | K35: 7744927
D36: Liabilities associated with assets held for sale | H36: 0 | I36: 15395 | J36: 45993 | K36: 35735
D38: Share capital | H38: 600000 | I38: 600000 | J38: 1100000 | K38: 1506119
D39: Reserves | H39: 8992178 | I39: 11858084 | J39: 12574687 | K39: 11754854
D40: Shareholders’ equity | H40: =H38+H39 -> 9592178 | I40: =I38+I39 -> 12458084 | J40: =J38+J39 -> 13674687 | K40: =K38+K39 -> 13260973
D41: Perpetual sukuk | H41: 0 | I41: 2231384 | J41: 2230717 | K41: 2231398
D42: Non controlling interests | H42: 454959 | I42: 433887 | J42: 408398 | K42: 368351
D43: Total equity | H43: 10047137 | I43: 15123355 | J43: 16313802 | K43: 15860722
D44: Total equity and liabilities | H44: 28437109 | I44: 29454877 | J44: 27491675 | K44: 28507722
J45: =J42/J43 -> 0.02503389461 | K45: =K42/K43 -> 0.02322410039
D46: FINANCIAL RATIOS Operating margin * | H46: 10.8 | I46: 32.9 | J46: 19.2 | K46: 3.4
D47: Return on shareholders’ equity | I47: 10.1 | J47: 28.2 | K47: -1.5
D48: Debt/Equity | H48: 55 | I48: 51.2 | J48: 39.8 | K48: 48.8
D49: Debt/EBITDA times | H49: 2.3 | I49: 1.4 | J49: 1.8 | K49: 4.8
D50: SHARE INFORMATION Basic earnings per share sen | H50: 14.4 | I50: 52.2 | J50: 25.5 | K50: -2.9
D51: Net assets per share attributable to owners of the Company RM | H51: 1.4 | I51: 1.8 | J51: 2 | K51: 1.9
D52: Net dividend per share sen | H52: 116.7 | I52: 150 | J52: 17.5 | K52: 1
D54: Row number | H54: 32
H55: =H6 -> 42735 | I55: =I6 -> 43100 | J55: =J6 -> 43465 | K55: =K6 -> 43830
D56: =INDEX(D:D,$H$54) -> Total assets | H56: =INDEX(H:H,$H$54) -> 28437109 | I56: =INDEX(I:I,$H$54) -> 29454877 | J56: =INDEX(J:J,$H$54) -> 27491675 | K56: =INDEX(K:K,$H$54) -> 28507722
B58: Historic Analysis | H58: =H6 -> 2016-12-31 | I58: =I6 -> 2017-12-31 | J58: =J6 -> 2018-12-31 | K58: =K6 -> 2019-12-31
C60: Revenue | H60: =IF(H2,H12) -> 11945994 | I60: 14767935 | J60: 14335826 | K60: 12062266 | L60: FALSE | M60: FALSE | N60: FALSE | O60: FALSE | P60: FALSE | Q60: FALSE | R60: FALSE | S60: FALSE | T60: FALSE | U60: FALSE | V60: FALSE | W60: FALSE | X60: FALSE | Y60: FALSE | Z60: FALSE | AA60: FALSE | AB60: FALSE | AC60: FALSE | AD60: FALSE | AE60: FALSE | AF60: FALSE | AG60: FALSE | AH60: FALSE | AI60: FALSE | AJ60: FALSE | AK60: FALSE | AL60: FALSE | AM60: FALSE | AN60: FALSE | AO60: =IF(AO2,'Financial Model'!AO12) -> FALSE | AP60: =IF(AP2,'Financial Model'!AP12) -> FALSE | AQ60: =IF(AQ2,'Financial Model'!AQ12) -> FALSE | AR60: =IF(AR2,'Financial Model'!AR12) -> FALSE | AS60: =IF(AS2,'Financial Model'!AS12) -> FALSE | AT60: =IF(AT2,'Financial Model'!AT12) -> FALSE | AU60: =IF(AU2,'Financial Model'!AU12) -> FALSE | AV60: =IF(AV2,'Financial Model'!AV12) -> FALSE | AW60: =IF(AW2,'Financial Model'!AW12) -> FALSE | AX60: =IF(AX2,'Financial Model'!AX12) -> FALSE | AY60: =IF(AY2,'Financial Model'!AY12) -> FALSE | AZ60: =IF(AZ2,'Financial Model'!AZ12) -> FALSE | BA60: =IF(BA2,'Financial Model'!BA12) -> FALSE | BB60: =IF(BB2,'Financial Model'!BB12) -> FALSE | BC60: =IF(BC2,'Financial Model'!BC12) -> FALSE | BD60: =IF(BD2,'Financial Model'!BD12) -> FALSE | BE60: =IF(BE2,'Financial Model'!BE12) -> FALSE | BF60: =IF(BF2,'Financial Model'!BF12) -> FALSE | BG60: =IF(BG2,'Financial Model'!BG12) -> FALSE | BH60: =IF(BH2,'Financial Model'!BH12) -> FALSE | BI60: =IF(BI2,'Financial Model'!BI12) -> FALSE | BJ60: =IF(BJ2,'Financial Model'!BJ12) -> FALSE | BK60: =IF(BK2,'Financial Model'!BK12) -> FALSE | BL60: =IF(BL2,'Financial Model'!BL12) -> FALSE | BM60: =IF(BM2,'Financial Model'!BM12) -> FALSE | BN60: =IF(BN2,'Financial Model'!BN12) -> FALSE | BO60: =IF(BO2,'Financial Model'!BO12) -> FALSE | BP60: =IF(BP2,'Financial Model'!BP12) -> FALSE | BQ60: =IF(BQ2,'Financial Model'!BQ12) -> FALSE | BR60: =IF(BR2,'Financial Model'!BR12) -> FALSE | BS60: =IF(BS2,'Financial Model'!BS12) -> FALSE | BT60: =IF(BT2,'Financial Model'!BT12) -> FALSE | BU60: =IF(BU2,'Financial Model'!BU12) -> FALSE | BV60: =IF(BV2,'Financial Model'!BV12) -> FALSE | BW60: =IF(BW2,'Financial Model'!BW12) -> FALSE | BX60: =IF(BX2,'Financial Model'!BX12) -> FALSE | BY60: =IF(BY2,'Financial Model'!BY12) -> FALSE | BZ60: =IF(BZ2,'Financial Model'!BZ12) -> FALSE | CA60: =IF(CA2,'Financial Model'!CA12) -> FALSE | CB60: =IF(CB2,'Financial Model'!CB12) -> FALSE | CC60: =IF(CC2,'Financial Model'!CC12) -> FALSE | CD60: =IF(CD2,'Financial Model'!CD12) -> FALSE | CE60: =IF(CE2,'Financial Model'!CE12) -> FALSE | CF60: =IF(CF2,'Financial Model'!CF12) -> FALSE | CG60: =IF(CG2,'Financial Model'!CG12) -> FALSE | CH60: =IF(CH2,'Financial Model'!CH12) -> FALSE | CI60: =IF(CI2,'Financial Model'!CI12) -> FALSE | CJ60: =IF(CJ2,'Financial Model'!CJ12) -> FALSE | CK60: =IF(CK2,'Financial Model'!CK12) -> FALSE | CL60: =IF(CL2,'Financial Model'!CL12) -> FALSE | CM60: =IF(CM2,'Financial Model'!CM12) -> FALSE | CN60: =IF(CN2,'Financial Model'!CN12) -> FALSE | CO60: =IF(CO2,'Financial Model'!CO12) -> FALSE | CP60: =IF(CP2,'Financial Model'!CP12) -> FALSE | CQ60: =IF(CQ2,'Financial Model'!CQ12) -> FALSE | CR60: =IF(CR2,'Financial Model'!CR12) -> FALSE | CS60: =IF(CS2,'Financial Model'!CS12) -> FALSE | CT60: =IF(CT2,'Financial Model'!CT12) -> FALSE | CU60: =IF(CU2,'Financial Model'!CU12) -> FALSE
C61: Quantity | H61: 430000 | I61: 470000 | J61: 460000 | K61: 440000
C62: Average Price Realised | H62: =H60/H61 -> 27.7813814 | I62: =I60/I61 -> 31.4211383 | J62: =J60/J61 -> 31.16483913 | K62: =K60/K61 -> 27.41424091
C64: Total Costs | H64: =IF(H2,H13) -> 9551218 | I64: 8694072 | J64: 10462843 | K64: 10450367 | L64: FALSE | M64: FALSE | N64: FALSE | O64: FALSE | P64: FALSE | Q64: FALSE | R64: FALSE | S64: FALSE | T64: FALSE | U64: FALSE | V64: FALSE | W64: FALSE | X64: FALSE | Y64: FALSE | Z64: FALSE | AA64: FALSE | AB64: FALSE | AC64: FALSE | AD64: FALSE | AE64: FALSE | AF64: FALSE | AG64: FALSE | AH64: FALSE | AI64: FALSE | AJ64: FALSE | AK64: FALSE | AL64: FALSE | AM64: FALSE | AN64: FALSE | AO64: =IF(AO2,'Financial Model'!AO13) -> FALSE | AP64: =IF(AP2,'Financial Model'!AP13) -> FALSE | AQ64: =IF(AQ2,'Financial Model'!AQ13) -> FALSE | AR64: =IF(AR2,'Financial Model'!AR13) -> FALSE | AS64: =IF(AS2,'Financial Model'!AS13) -> FALSE | AT64: =IF(AT2,'Financial Model'!AT13) -> FALSE | AU64: =IF(AU2,'Financial Model'!AU13) -> FALSE | AV64: =IF(AV2,'Financial Model'!AV13) -> FALSE | AW64: =IF(AW2,'Financial Model'!AW13) -> FALSE | AX64: =IF(AX2,'Financial Model'!AX13) -> FALSE | AY64: =IF(AY2,'Financial Model'!AY13) -> FALSE | AZ64: =IF(AZ2,'Financial Model'!AZ13) -> FALSE | BA64: =IF(BA2,'Financial Model'!BA13) -> FALSE | BB64: =IF(BB2,'Financial Model'!BB13) -> FALSE | BC64: =IF(BC2,'Financial Model'!BC13) -> FALSE | BD64: =IF(BD2,'Financial Model'!BD13) -> FALSE | BE64: =IF(BE2,'Financial Model'!BE13) -> FALSE | BF64: =IF(BF2,'Financial Model'!BF13) -> FALSE | BG64: =IF(BG2,'Financial Model'!BG13) -> FALSE | BH64: =IF(BH2,'Financial Model'!BH13) -> FALSE | BI64: =IF(BI2,'Financial Model'!BI13) -> FALSE | BJ64: =IF(BJ2,'Financial Model'!BJ13) -> FALSE | BK64: =IF(BK2,'Financial Model'!BK13) -> FALSE | BL64: =IF(BL2,'Financial Model'!BL13) -> FALSE | BM64: =IF(BM2,'Financial Model'!BM13) -> FALSE | BN64: =IF(BN2,'Financial Model'!BN13) -> FALSE | BO64: =IF(BO2,'Financial Model'!BO13) -> FALSE | BP64: =IF(BP2,'Financial Model'!BP13) -> FALSE | BQ64: =IF(BQ2,'Financial Model'!BQ13) -> FALSE | BR64: =IF(BR2,'Financial Model'!BR13) -> FALSE | BS64: =IF(BS2,'Financial Model'!BS13) -> FALSE | BT64: =IF(BT2,'Financial Model'!BT13) -> FALSE | BU64: =IF(BU2,'Financial Model'!BU13) -> FALSE | BV64: =IF(BV2,'Financial Model'!BV13) -> FALSE | BW64: =IF(BW2,'Financial Model'!BW13) -> FALSE | BX64: =IF(BX2,'Financial Model'!BX13) -> FALSE | BY64: =IF(BY2,'Financial Model'!BY13) -> FALSE | BZ64: =IF(BZ2,'Financial Model'!BZ13) -> FALSE | CA64: =IF(CA2,'Financial Model'!CA13) -> FALSE | CB64: =IF(CB2,'Financial Model'!CB13) -> FALSE | CC64: =IF(CC2,'Financial Model'!CC13) -> FALSE | CD64: =IF(CD2,'Financial Model'!CD13) -> FALSE | CE64: =IF(CE2,'Financial Model'!CE13) -> FALSE | CF64: =IF(CF2,'Financial Model'!CF13) -> FALSE | CG64: =IF(CG2,'Financial Model'!CG13) -> FALSE | CH64: =IF(CH2,'Financial Model'!CH13) -> FALSE | CI64: =IF(CI2,'Financial Model'!CI13) -> FALSE | CJ64: =IF(CJ2,'Financial Model'!CJ13) -> FALSE | CK64: =IF(CK2,'Financial Model'!CK13) -> FALSE | CL64: =IF(CL2,'Financial Model'!CL13) -> FALSE | CM64: =IF(CM2,'Financial Model'!CM13) -> FALSE | CN64: =IF(CN2,'Financial Model'!CN13) -> FALSE | CO64: =IF(CO2,'Financial Model'!CO13) -> FALSE | CP64: =IF(CP2,'Financial Model'!CP13) -> FALSE | CQ64: =IF(CQ2,'Financial Model'!CQ13) -> FALSE | CR64: =IF(CR2,'Financial Model'!CR13) -> FALSE | CS64: =IF(CS2,'Financial Model'!CS13) -> FALSE | CT64: =IF(CT2,'Financial Model'!CT13) -> FALSE | CU64: =IF(CU2,'Financial Model'!CU13) -> FALSE
C65: Variable Cost/Unit | H65: 9 | I65: =H65*1.02 -> 9.18 | J65: =I65*1.02 -> 9.3636 | K65: =J65*1.02 -> 9.550872
C66: Variable Costs | H66: =H65*H61 -> 3870000 | I66: =I65*I61 -> 4314600 | J66: =J65*J61 -> 4307256 | K66: =K65*K61 -> 4202383.68
C67: Fixed Costs | H67: =H64-H66 -> 5681218 | I67: =I64-I66 -> 4379472 | J67: =J64-J66 -> 6155587 | K67: =K64-K66 -> 6247983.32
C69: Capital Expenditure Analysis
D70: Total Non-Current Assets | H70: =H28 -> 23732635 | I70: =I28 -> 23794526 | J70: =J28 -> 22517962 | K70: =K28 -> 23541567
D71: Depreciation | H71: =H15 -> 1119172 | I71: =I15 -> 1225048 | J71: =J15 -> 1136234 | K71: =K15 -> 1206013
D72: Implied Cap Exp | I72: =I70-H70+I71 -> 1286939 | J72: =J70-I70+J71 -> -140330 | K72: =K70-J70+K71 -> 2229618
D74: Cap Exp to Depreciation | I74: =I72/I71 -> 1.050521286 | J74: =J72/J71 -> -0.1235044894 | K74: =K72/K71 -> 1.848751216
D75: Net Depreciation Rate | H75: =H71/H70 -> 0.04715751117 | I75: =I71/H70 -> 0.05161870985 | J75: =J71/I70 -> 0.04775190731 | K75: =K71/J70 -> 0.05355782197
C77: Working Capital Analysis
D78: Current Assets non-Cash | H78: =H29 -> 4064272 | I78: =I29 -> 4763309 | J78: 4391511 | K78: 4012270
D79: Current Assets to Revenues | H79: =H78/H60 -> 0.3402204957 | I79: =I78/I60 -> 0.3225440117 | J79: =J78/J60 -> 0.3063312152 | K79: =K78/K60 -> 0.3326298724
D81: Current Liabilities | H81: =H34 -> 12867607 | I81: =I34 -> 6578200 | J81: =J34 -> 4642482 | K81: =K34 -> 4866338
D82: Current Liabilities to Cost | H82: =H81/H64 -> 1.347221579 | I82: =I81/I64 -> 0.7566304949 | J82: =J81/J64 -> 0.4437113316 | K82: =K81/K64 -> 0.4656619236
C84: Tax Rate | H84: =H19/H18 -> -0.1916298169 | I84: =I19/I18 -> 0.1082741941 | J84: =J19/J18 -> 0.1906904624 | K84: =K19/K18 -> -0.09378232982
B87: Forecast Cash Flow
C88: EBITDA
D89: Price | H89: =LOOKUP(H6,Scenarios!2:2,Scenarios!21:21) -> 27.7813814 | I89: =LOOKUP(I6,Scenarios!2:2,Scenarios!21:21) -> 31.4211383 | J89: =LOOKUP(J6,Scenarios!2:2,Scenarios!21:21) -> 31.16483913 | K89: =LOOKUP(K6,Scenarios!2:2,Scenarios!21:21) -> 27.41424091 | L89: =LOOKUP(L6,Scenarios!2:2,Scenarios!21:21) -> 24.23282642 | M89: =LOOKUP(M6,Scenarios!2:2,Scenarios!21:21) -> 24.46003872 | N89: =LOOKUP(N6,Scenarios!2:2,Scenarios!21:21) -> 24.70527718 | O89: =LOOKUP(O6,Scenarios!2:2,Scenarios!21:21) -> 24.94494556 | P89: =LOOKUP(P6,Scenarios!2:2,Scenarios!21:21) -> 25.19504575 | Q89: =LOOKUP(Q6,Scenarios!2:2,Scenarios!21:21) -> 25.43946542 | R89: =LOOKUP(R6,Scenarios!2:2,Scenarios!21:21) -> 25.69452371 | S89: =LOOKUP(S6,Scenarios!2:2,Scenarios!21:21) -> 25.95213922 | T89: =LOOKUP(T6,Scenarios!2:2,Scenarios!21:21) -> 26.20390354 | U89: =LOOKUP(U6,Scenarios!2:2,Scenarios!21:21) -> 26.46662614 | V89: =LOOKUP(V6,Scenarios!2:2,Scenarios!21:21) -> 26.72338155 | W89: =LOOKUP(W6,Scenarios!2:2,Scenarios!21:21) -> 26.99131249 | X89: =LOOKUP(X6,Scenarios!2:2,Scenarios!21:21) -> 27.15904678 | Y89: =LOOKUP(Y6,Scenarios!2:2,Scenarios!21:21) -> 27.3083356 | Z89: =LOOKUP(Z6,Scenarios!2:2,Scenarios!21:21) -> 27.47457706 | AA89: =LOOKUP(AA6,Scenarios!2:2,Scenarios!21:21) -> 27.63641939 | AB89: =LOOKUP(AB6,Scenarios!2:2,Scenarios!21:21) -> 27.80465808 | AC89: =LOOKUP(AC6,Scenarios!2:2,Scenarios!21:21) -> 27.96844479 | AD89: =LOOKUP(AD6,Scenarios!2:2,Scenarios!21:21) -> 28.13870471 | AE89: =LOOKUP(AE6,Scenarios!2:2,Scenarios!21:21) -> 28.3100011 | AF89: =LOOKUP(AF6,Scenarios!2:2,Scenarios!21:21) -> 28.4767646 | AG89: =LOOKUP(AG6,Scenarios!2:2,Scenarios!21:21) -> 28.65011895 | AH89: =LOOKUP(AH6,Scenarios!2:2,Scenarios!21:21) -> 28.81888595 | AI89: =LOOKUP(AI6,Scenarios!2:2,Scenarios!21:21) -> 28.99432299 | AJ89: =LOOKUP(AJ6,Scenarios!2:2,Scenarios!21:21) -> 29.23558977 | AK89: =LOOKUP(AK6,Scenarios!2:2,Scenarios!21:21) -> 29.45719999 | AL89: =LOOKUP(AL6,Scenarios!2:2,Scenarios!21:21) -> 29.70451415 | AM89: =LOOKUP(AM6,Scenarios!2:2,Scenarios!21:21) -> 29.94582724 | AN89: =LOOKUP(AN6,Scenarios!2:2,Scenarios!21:21) -> 30.19724377 | AO89: =LOOKUP(AO6,Scenarios!2:2,Scenarios!21:21) -> 30.4425597 | AP89: =LOOKUP(AP6,Scenarios!2:2,Scenarios!21:21) -> 30.69814665 | AQ89: =LOOKUP(AQ6,Scenarios!2:2,Scenarios!21:21) -> 30.95587944 | AR89: =LOOKUP(AR6,Scenarios!2:2,Scenarios!21:21) -> 31.20735835 | AS89: =LOOKUP(AS6,Scenarios!2:2,Scenarios!21:21) -> 31.46936634 | AT89: =LOOKUP(AT6,Scenarios!2:2,Scenarios!21:21) -> 31.72501671 | AU89: =LOOKUP(AU6,Scenarios!2:2,Scenarios!21:21) -> 31.9913708 | AV89: =LOOKUP(AV6,Scenarios!2:2,Scenarios!21:21) -> 32.7069155 | AW89: =LOOKUP(AW6,Scenarios!2:2,Scenarios!21:21) -> 33.44586629 | AX89: =LOOKUP(AX6,Scenarios!2:2,Scenarios!21:21) -> 34.20991022 | AY89: =LOOKUP(AY6,Scenarios!2:2,Scenarios!21:21) -> 34.99140811 | AZ89: =LOOKUP(AZ6,Scenarios!2:2,Scenarios!21:21) -> 35.714992 | BA89: =LOOKUP(BA6,Scenarios!2:2,Scenarios!21:21) -> 36.45277992 | BB89: =LOOKUP(BB6,Scenarios!2:2,Scenarios!21:21) -> 37.21416967 | BC89: =LOOKUP(BC6,Scenarios!2:2,Scenarios!21:21) -> 37.99146258 | BD89: =LOOKUP(BD6,Scenarios!2:2,Scenarios!21:21) -> 38.93875673 | BE89: =LOOKUP(BE6,Scenarios!2:2,Scenarios!21:21) -> 39.92259227 | BF89: =LOOKUP(BF6,Scenarios!2:2,Scenarios!21:21) -> 40.94251057 | BG89: =LOOKUP(BG6,Scenarios!2:2,Scenarios!21:21) -> 41.98848513 | BH89: =LOOKUP(BH6,Scenarios!2:2,Scenarios!21:21) -> 42.47912824 | BI89: =LOOKUP(BI6,Scenarios!2:2,Scenarios!21:21) -> 42.97467531 | BJ89: =LOOKUP(BJ6,Scenarios!2:2,Scenarios!21:21) -> 43.48154472 | BK89: =LOOKUP(BK6,Scenarios!2:2,Scenarios!21:21) -> 43.99439247 | BL89: =LOOKUP(BL6,Scenarios!2:2,Scenarios!21:21) -> 44 | BM89: =LOOKUP(BM6,Scenarios!2:2,Scenarios!21:21) -> 44 | BN89: =LOOKUP(BN6,Scenarios!2:2,Scenarios!21:21) -> 44 | BO89: =LOOKUP(BO6,Scenarios!2:2,Scenarios!21:21) -> 44 | BP89: =LOOKUP(BP6,Scenarios!2:2,Scenarios!21:21) -> 44 | BQ89: =LOOKUP(BQ6,Scenarios!2:2,Scenarios!21:21) -> 44 | BR89: =LOOKUP(BR6,Scenarios!2:2,Scenarios!21:21) -> 44 | BS89: =LOOKUP(BS6,Scenarios!2:2,Scenarios!21:21) -> 44 | BT89: =LOOKUP(BT6,Scenarios!2:2,Scenarios!21:21) -> 44 | BU89: =LOOKUP(BU6,Scenarios!2:2,Scenarios!21:21) -> 44 | BV89: =LOOKUP(BV6,Scenarios!2:2,Scenarios!21:21) -> 44 | BW89: =LOOKUP(BW6,Scenarios!2:2,Scenarios!21:21) -> 44 | BX89: =LOOKUP(BX6,Scenarios!2:2,Scenarios!21:21) -> 44 | BY89: =LOOKUP(BY6,Scenarios!2:2,Scenarios!21:21) -> 44 | BZ89: =LOOKUP(BZ6,Scenarios!2:2,Scenarios!21:21) -> 44 | CA89: =LOOKUP(CA6,Scenarios!2:2,Scenarios!21:21) -> 44 | CB89: =LOOKUP(CB6,Scenarios!2:2,Scenarios!21:21) -> 44 | CC89: =LOOKUP(CC6,Scenarios!2:2,Scenarios!21:21) -> 44 | CD89: =LOOKUP(CD6,Scenarios!2:2,Scenarios!21:21) -> 44 | CE89: =LOOKUP(CE6,Scenarios!2:2,Scenarios!21:21) -> 44 | CF89: =LOOKUP(CF6,Scenarios!2:2,Scenarios!21:21) -> 44 | CG89: =LOOKUP(CG6,Scenarios!2:2,Scenarios!21:21) -> 44 | CH89: =LOOKUP(CH6,Scenarios!2:2,Scenarios!21:21) -> 44 | CI89: =LOOKUP(CI6,Scenarios!2:2,Scenarios!21:21) -> 44 | CJ89: =LOOKUP(CJ6,Scenarios!2:2,Scenarios!21:21) -> 44 | CK89: =LOOKUP(CK6,Scenarios!2:2,Scenarios!21:21) -> 44 | CL89: =LOOKUP(CL6,Scenarios!2:2,Scenarios!21:21) -> 44 | CM89: =LOOKUP(CM6,Scenarios!2:2,Scenarios!21:21) -> 44 | CN89: =LOOKUP(CN6,Scenarios!2:2,Scenarios!21:21) -> 44 | CO89: =LOOKUP(CO6,Scenarios!2:2,Scenarios!21:21) -> 44 | CP89: =LOOKUP(CP6,Scenarios!2:2,Scenarios!21:21) -> 44 | CQ89: =LOOKUP(CQ6,Scenarios!2:2,Scenarios!21:21) -> 44 | CR89: =LOOKUP(CR6,Scenarios!2:2,Scenarios!21:21) -> 44 | CS89: =LOOKUP(CS6,Scenarios!2:2,Scenarios!21:21) -> 44 | CT89: =LOOKUP(CT6,Scenarios!2:2,Scenarios!21:21) -> 44 | CU89: =LOOKUP(CU6,Scenarios!2:2,Scenarios!21:21) -> 44
D90: Quantity | H90: =interpolate_look_up(H6,Scenarios!25:25,Scenarios!34:34)/12*H5 -> 430000 | I90: =interpolate_look_up(I6,Scenarios!25:25,Scenarios!34:34)/12*I5 -> 470000 | J90: =interpolate_look_up(J6,Scenarios!25:25,Scenarios!34:34)/12*J5 -> 460000 | K90: =interpolate_look_up(K6,Scenarios!25:25,Scenarios!34:34)/12*K5 -> 440000 | L90: =interpolate_look_up(L6,Scenarios!25:25,Scenarios!34:34)/12*L5 -> 36666.66667 | M90: =interpolate_look_up(M6,Scenarios!25:25,Scenarios!34:34)/12*M5 -> 36666.66667 | N90: =interpolate_look_up(N6,Scenarios!25:25,Scenarios!34:34)/12*N5 -> 36666.66667 | O90: =interpolate_look_up(O6,Scenarios!25:25,Scenarios!34:34)/12*O5 -> 36666.66667 | P90: =interpolate_look_up(P6,Scenarios!25:25,Scenarios!34:34)/12*P5 -> 36666.66667 | Q90: =interpolate_look_up(Q6,Scenarios!25:25,Scenarios!34:34)/12*Q5 -> 36666.66667 | R90: =interpolate_look_up(R6,Scenarios!25:25,Scenarios!34:34)/12*R5 -> 36666.66667 | S90: =interpolate_look_up(S6,Scenarios!25:25,Scenarios!34:34)/12*S5 -> 36666.66667 | T90: =interpolate_look_up(T6,Scenarios!25:25,Scenarios!34:34)/12*T5 -> 36666.66667 | U90: =interpolate_look_up(U6,Scenarios!25:25,Scenarios!34:34)/12*U5 -> 36666.66667 | V90: =interpolate_look_up(V6,Scenarios!25:25,Scenarios!34:34)/12*V5 -> 36666.66667 | W90: =interpolate_look_up(W6,Scenarios!25:25,Scenarios!34:34)/12*W5 -> 36666.66667 | X90: =interpolate_look_up(X6,Scenarios!25:25,Scenarios!34:34)/12*X5 -> 36805.358 | Y90: =interpolate_look_up(Y6,Scenarios!25:25,Scenarios!34:34)/12*Y5 -> 36931.07843 | Z90: =interpolate_look_up(Z6,Scenarios!25:25,Scenarios!34:34)/12*Z5 -> 37070.7699 | AA90: =interpolate_look_up(AA6,Scenarios!25:25,Scenarios!34:34)/12*AA5 -> 37206.45826 | AB90: =interpolate_look_up(AB6,Scenarios!25:25,Scenarios!34:34)/12*AB5 -> 37347.19134 | AC90: =interpolate_look_up(AC6,Scenarios!25:25,Scenarios!34:34)/12*AC5 -> 37483.89147 | AD90: =interpolate_look_up(AD6,Scenarios!25:25,Scenarios!34:34)/12*AD5 -> 37625.67395 | AE90: =interpolate_look_up(AE6,Scenarios!25:25,Scenarios!34:34)/12*AE5 -> 37767.99271 | AF90: =interpolate_look_up(AF6,Scenarios!25:25,Scenarios!34:34)/12*AF5 -> 37906.23308 | AG90: =interpolate_look_up(AG6,Scenarios!25:25,Scenarios!34:34)/12*AG5 -> 38049.61306 | AH90: =interpolate_look_up(AH6,Scenarios!25:25,Scenarios!34:34)/12*AH5 -> 38188.88423 | AI90: =interpolate_look_up(AI6,Scenarios!25:25,Scenarios!34:34)/12*AI5 -> 38333.33333 | AJ90: =interpolate_look_up(AJ6,Scenarios!25:25,Scenarios!34:34)/12*AJ5 -> 38403.41524 | AK90: =interpolate_look_up(AK6,Scenarios!25:25,Scenarios!34:34)/12*AK5 -> 38466.82514 | AL90: =interpolate_look_up(AL6,Scenarios!25:25,Scenarios!34:34)/12*AL5 -> 38537.1511 | AM90: =interpolate_look_up(AM6,Scenarios!25:25,Scenarios!34:34)/12*AM5 -> 38605.33089 | AN90: =interpolate_look_up(AN6,Scenarios!25:25,Scenarios!34:34)/12*AN5 -> 38675.91007 | AO90: =interpolate_look_up(AO6,Scenarios!25:25,Scenarios!34:34)/12*AO5 -> 38744.33535 | AP90: =interpolate_look_up(AP6,Scenarios!25:25,Scenarios!34:34)/12*AP5 -> 38815.16866 | AQ90: =interpolate_look_up(AQ6,Scenarios!25:25,Scenarios!34:34)/12*AQ5 -> 38886.13147 | AR90: =interpolate_look_up(AR6,Scenarios!25:25,Scenarios!34:34)/12*AR5 -> 38954.92867 | AS90: =interpolate_look_up(AS6,Scenarios!25:25,Scenarios!34:34)/12*AS5 -> 39026.14699 | AT90: =interpolate_look_up(AT6,Scenarios!25:25,Scenarios!34:34)/12*AT5 -> 39095.19191 | AU90: =interpolate_look_up(AU6,Scenarios!25:25,Scenarios!34:34)/12*AU5 -> 39166.66667 | AV90: =interpolate_look_up(AV6,Scenarios!25:25,Scenarios!34:34)/12*AV5 -> 118111.5581 | AW90: =interpolate_look_up(AW6,Scenarios!25:25,Scenarios!34:34)/12*AW5 -> 118733.1475 | AX90: =interpolate_look_up(AX6,Scenarios!25:25,Scenarios!34:34)/12*AX5 -> 119364.8931 | AY90: =interpolate_look_up(AY6,Scenarios!25:25,Scenarios!34:34)/12*AY5 -> 120000 | AZ90: =interpolate_look_up(AZ6,Scenarios!25:25,Scenarios!34:34)/12*AZ5 -> 120174.4623 | BA90: =interpolate_look_up(BA6,Scenarios!25:25,Scenarios!34:34)/12*BA5 -> 120349.1783 | BB90: =interpolate_look_up(BB6,Scenarios!25:25,Scenarios!34:34)/12*BB5 -> 120526.0724 | BC90: =interpolate_look_up(BC6,Scenarios!25:25,Scenarios!34:34)/12*BC5 -> 120703.2265 | BD90: =interpolate_look_up(BD6,Scenarios!25:25,Scenarios!34:34)/12*BD5 -> 120876.7815 | BE90: =interpolate_look_up(BE6,Scenarios!25:25,Scenarios!34:34)/12*BE5 -> 121052.5185 | BF90: =interpolate_look_up(BF6,Scenarios!25:25,Scenarios!34:34)/12*BF5 -> 121230.4464 | BG90: =interpolate_look_up(BG6,Scenarios!25:25,Scenarios!34:34)/12*BG5 -> 121408.6359 | BH90: =interpolate_look_up(BH6,Scenarios!25:25,Scenarios!34:34)/12*BH5 -> 121583.2051 | BI90: =interpolate_look_up(BI6,Scenarios!25:25,Scenarios!34:34)/12*BI5 -> 121759.9691 | BJ90: =interpolate_look_up(BJ6,Scenarios!25:25,Scenarios!34:34)/12*BJ5 -> 121938.9369 | BK90: =interpolate_look_up(BK6,Scenarios!25:25,Scenarios!34:34)/12*BK5 -> 122118.1677 | BL90: =interpolate_look_up(BL6,Scenarios!25:25,Scenarios!34:34)/12*BL5 -> 122293.7571 | BM90: =interpolate_look_up(BM6,Scenarios!25:25,Scenarios!34:34)/12*BM5 -> 122471.5543 | BN90: =interpolate_look_up(BN6,Scenarios!25:25,Scenarios!34:34)/12*BN5 -> 122651.5679 | BO90: =interpolate_look_up(BO6,Scenarios!25:25,Scenarios!34:34)/12*BO5 -> 122831.8462 | BP90: =interpolate_look_up(BP6,Scenarios!25:25,Scenarios!34:34)/12*BP5 -> 123010.4256 | BQ90: =interpolate_look_up(BQ6,Scenarios!25:25,Scenarios!34:34)/12*BQ5 -> 123189.2647 | BR90: =interpolate_look_up(BR6,Scenarios!25:25,Scenarios!34:34)/12*BR5 -> 123370.3333 | BS90: =interpolate_look_up(BS6,Scenarios!25:25,Scenarios!34:34)/12*BS5 -> 123551.668 | BT90: =interpolate_look_up(BT6,Scenarios!25:25,Scenarios!34:34)/12*BT5 -> 123729.3186 | BU90: =interpolate_look_up(BU6,Scenarios!25:25,Scenarios!34:34)/12*BU5 -> 123909.2028 | BV90: =interpolate_look_up(BV6,Scenarios!25:25,Scenarios!34:34)/12*BV5 -> 124091.3296 | BW90: =interpolate_look_up(BW6,Scenarios!25:25,Scenarios!34:34)/12*BW5 -> 124273.7241 | BX90: =interpolate_look_up(BX6,Scenarios!25:25,Scenarios!34:34)/12*BX5 -> 124452.4129 | BY90: =interpolate_look_up(BY6,Scenarios!25:25,Scenarios!34:34)/12*BY5 -> 124633.3484 | BZ90: =interpolate_look_up(BZ6,Scenarios!25:25,Scenarios!34:34)/12*BZ5 -> 124816.5396 | CA90: =interpolate_look_up(CA6,Scenarios!25:25,Scenarios!34:34)/12*CA5 -> 125000 | CB90: =interpolate_look_up(CB6,Scenarios!25:25,Scenarios!34:34)/12*CB5 -> 125122.0637 | CC90: =interpolate_look_up(CC6,Scenarios!25:25,Scenarios!34:34)/12*CC5 -> 125245.6049 | CD90: =interpolate_look_up(CD6,Scenarios!25:25,Scenarios!34:34)/12*CD5 -> 125370.6276 | CE90: =interpolate_look_up(CE6,Scenarios!25:25,Scenarios!34:34)/12*CE5 -> 125495.7751 | CF90: =interpolate_look_up(CF6,Scenarios!25:25,Scenarios!34:34)/12*CF5 -> 125619.6853 | CG90: =interpolate_look_up(CG6,Scenarios!25:25,Scenarios!34:34)/12*CG5 -> 125743.7178 | CH90: =interpolate_look_up(CH6,Scenarios!25:25,Scenarios!34:34)/12*CH5 -> 125869.2377 | CI90: =interpolate_look_up(CI6,Scenarios!25:25,Scenarios!34:34)/12*CI5 -> 125994.883 | CJ90: =interpolate_look_up(CJ6,Scenarios!25:25,Scenarios!34:34)/12*CJ5 -> 126117.9182 | CK90: =interpolate_look_up(CK6,Scenarios!25:25,Scenarios!34:34)/12*CK5 -> 126242.4426 | CL90: =interpolate_look_up(CL6,Scenarios!25:25,Scenarios!34:34)/12*CL5 -> 126368.4605 | CM90: =interpolate_look_up(CM6,Scenarios!25:25,Scenarios!34:34)/12*CM5 -> 126494.6041 | CN90: =interpolate_look_up(CN6,Scenarios!25:25,Scenarios!34:34)/12*CN5 -> 126618.1273 | CO90: =interpolate_look_up(CO6,Scenarios!25:25,Scenarios!34:34)/12*CO5 -> 126743.1456 | CP90: =interpolate_look_up(CP6,Scenarios!25:25,Scenarios!34:34)/12*CP5 -> 126869.6632 | CQ90: =interpolate_look_up(CQ6,Scenarios!25:25,Scenarios!34:34)/12*CQ5 -> 126996.3071 | CR90: =interpolate_look_up(CR6,Scenarios!25:25,Scenarios!34:34)/12*CR5 -> 127120.3202 | CS90: =interpolate_look_up(CS6,Scenarios!25:25,Scenarios!34:34)/12*CS5 -> 127245.8344 | CT90: =interpolate_look_up(CT6,Scenarios!25:25,Scenarios!34:34)/12*CT5 -> 127372.8538 | CU90: =interpolate_look_up(CU6,Scenarios!25:25,Scenarios!34:34)/12*CU5 -> 127500
D91: Revenues | H91: =H89*H90 -> 11945994 | I91: =I89*I90 -> 14767935 | J91: 14335826 | K91: 12062266 | L91: 888536.9686 | M91: 896868.0863 | N91: 905860.1633 | O91: 914648.004 | P91: 923818.3441 | Q91: 932780.3989 | R91: 942132.5359 | S91: 951578.4382 | T91: 960809.7965 | U91: 970442.9586 | V91: 979857.3235 | W91: 989681.4578 | X91: 999598.4395 | Y91: 1008526.284 | Z91: 1018503.724 | AA91: 1028253.284 | AB91: 1038425.886 | AC91: 1048366.149 | AD91: 1058737.729 | AE91: 1069211.915 | AF91: 1079446.876 | AG91: 1090125.94 | AH91: 1100561.099 | AI91: 1111449.048 | AJ91: 1122746.494 | AK91: 1133124.961 | AL91: 1144727.35 | AM91: 1156068.569 | AN91: 1167905.884 | AO91: 1179476.742 | AP91: 1191553.74 | AQ91: 1203754.397 | AR91: 1215680.419 | AS91: 1228128.116 | AT91: 1240295.617 | AU91: 1252995.356 | AV91: 3863064.749 | AW91: 3971132.977 | AX91: 4083462.276 | AY91: 4198968.973 | AZ91: 4292029.961 | BA91: 4387062.109 | BB91: 4485277.708 | BC91: 4585692.114 | BD91: 4706791.588 | BE91: 4832730.339 | BF91: 4963478.834 | BG91: 5097764.702 | BH91: 5164748.56 | BI91: 5232595.139 | BJ91: 5302093.339 | BK91: 5372514.599 | BL91: 5380925.315 | BM91: 5388748.387 | BN91: 5396668.989 | BO91: 5404601.234 | BP91: 5412458.727 | BQ91: 5420327.645 | BR91: 5428294.664 | BS91: 5436273.392 | BT91: 5444090.018 | BU91: =BU89*BU90 -> 5452004.923 | BV91: 5460018.502 | BW91: 5468043.86 | BX91: 5475906.168 | BY91: 5483867.329 | BZ91: 5491927.741 | CA91: 5500000 | CB91: 5505370.803 | CC91: 5510806.613 | CD91: 5516307.614 | CE91: 5521814.106 | CF91: 5527266.152 | CG91: 5532723.582 | CH91: 5538246.461 | CI91: 5543774.853 | CJ91: 5549188.402 | CK91: 5554667.476 | CL91: 5560212.26 | CM91: 5565762.579 | CN91: 5571197.599 | CO91: 5576698.405 | CP91: 5582265.18 | CQ91: 5587837.513 | CR91: 5593294.089 | CS91: 5598816.712 | CT91: 5604405.567 | CU91: 5610000
D93: Variable Cost per Unit | H93: =LOOKUP(H6,Scenarios!38:38,Scenarios!40:40) -> 9 | I93: =LOOKUP(I6,Scenarios!38:38,Scenarios!40:40) -> 9.18 | J93: =LOOKUP(J6,Scenarios!38:38,Scenarios!40:40) -> 9.3636 | K93: =LOOKUP(K6,Scenarios!38:38,Scenarios!40:40) -> 9.550872 | L93: =LOOKUP(L6,Scenarios!38:38,Scenarios!40:40) -> 9.550872 | M93: =LOOKUP(M6,Scenarios!38:38,Scenarios!40:40) -> 9.550872 | N93: =LOOKUP(N6,Scenarios!38:38,Scenarios!40:40) -> 9.550872 | O93: =LOOKUP(O6,Scenarios!38:38,Scenarios!40:40) -> 9.550872 | P93: =LOOKUP(P6,Scenarios!38:38,Scenarios!40:40) -> 9.550872 | Q93: =LOOKUP(Q6,Scenarios!38:38,Scenarios!40:40) -> 9.550872 | R93: =LOOKUP(R6,Scenarios!38:38,Scenarios!40:40) -> 9.550872 | S93: =LOOKUP(S6,Scenarios!38:38,Scenarios!40:40) -> 9.550872 | T93: =LOOKUP(T6,Scenarios!38:38,Scenarios!40:40) -> 9.550872 | U93: =LOOKUP(U6,Scenarios!38:38,Scenarios!40:40) -> 9.550872 | V93: =LOOKUP(V6,Scenarios!38:38,Scenarios!40:40) -> 9.550872 | W93: =LOOKUP(W6,Scenarios!38:38,Scenarios!40:40) -> 9.4 | X93: =LOOKUP(X6,Scenarios!38:38,Scenarios!40:40) -> 9.4 | Y93: =LOOKUP(Y6,Scenarios!38:38,Scenarios!40:40) -> 9.4 | Z93: =LOOKUP(Z6,Scenarios!38:38,Scenarios!40:40) -> 9.4 | AA93: =LOOKUP(AA6,Scenarios!38:38,Scenarios!40:40) -> 9.4 | AB93: =LOOKUP(AB6,Scenarios!38:38,Scenarios!40:40) -> 9.4 | AC93: =LOOKUP(AC6,Scenarios!38:38,Scenarios!40:40) -> 9.4 | AD93: =LOOKUP(AD6,Scenarios!38:38,Scenarios!40:40) -> 9.4 | AE93: =LOOKUP(AE6,Scenarios!38:38,Scenarios!40:40) -> 9.4 | AF93: =LOOKUP(AF6,Scenarios!38:38,Scenarios!40:40) -> 9.4 | AG93: =LOOKUP(AG6,Scenarios!38:38,Scenarios!40:40) -> 9.4 | AH93: =LOOKUP(AH6,Scenarios!38:38,Scenarios!40:40) -> 9.4 | AI93: =LOOKUP(AI6,Scenarios!38:38,Scenarios!40:40) -> 9.541 | AJ93: =LOOKUP(AJ6,Scenarios!38:38,Scenarios!40:40) -> 9.541 | AK93: =LOOKUP(AK6,Scenarios!38:38,Scenarios!40:40) -> 9.541 | AL93: =LOOKUP(AL6,Scenarios!38:38,Scenarios!40:40) -> 9.541 | AM93: =LOOKUP(AM6,Scenarios!38:38,Scenarios!40:40) -> 9.541 | AN93: =LOOKUP(AN6,Scenarios!38:38,Scenarios!40:40) -> 9.541 | AO93: =LOOKUP(AO6,Scenarios!38:38,Scenarios!40:40) -> 9.541 | AP93: =LOOKUP(AP6,Scenarios!38:38,Scenarios!40:40) -> 9.541 | AQ93: =LOOKUP(AQ6,Scenarios!38:38,Scenarios!40:40) -> 9.541 | AR93: =LOOKUP(AR6,Scenarios!38:38,Scenarios!40:40) -> 9.541 | AS93: =LOOKUP(AS6,Scenarios!38:38,Scenarios!40:40) -> 9.541 | AT93: =LOOKUP(AT6,Scenarios!38:38,Scenarios!40:40) -> 9.541 | AU93: =LOOKUP(AU6,Scenarios!38:38,Scenarios!40:40) -> 9.684115 | AV93: =LOOKUP(AV6,Scenarios!38:38,Scenarios!40:40) -> 9.684115 | AW93: =LOOKUP(AW6,Scenarios!38:38,Scenarios!40:40) -> 9.684115 | AX93: =LOOKUP(AX6,Scenarios!38:38,Scenarios!40:40) -> 9.684115 | AY93: =LOOKUP(AY6,Scenarios!38:38,Scenarios!40:40) -> 9.829376725 | AZ93: =LOOKUP(AZ6,Scenarios!38:38,Scenarios!40:40) -> 9.829376725 | BA93: =LOOKUP(BA6,Scenarios!38:38,Scenarios!40:40) -> 9.829376725 | BB93: =LOOKUP(BB6,Scenarios!38:38,Scenarios!40:40) -> 9.829376725 | BC93: =LOOKUP(BC6,Scenarios!38:38,Scenarios!40:40) -> 9.829376725 | BD93: =LOOKUP(BD6,Scenarios!38:38,Scenarios!40:40) -> 9.829376725 | BE93: =LOOKUP(BE6,Scenarios!38:38,Scenarios!40:40) -> 9.829376725 | BF93: =LOOKUP(BF6,Scenarios!38:38,Scenarios!40:40) -> 9.829376725 | BG93: =LOOKUP(BG6,Scenarios!38:38,Scenarios!40:40) -> 9.829376725 | BH93: =LOOKUP(BH6,Scenarios!38:38,Scenarios!40:40) -> 9.829376725 | BI93: =LOOKUP(BI6,Scenarios!38:38,Scenarios!40:40) -> 9.829376725 | BJ93: =LOOKUP(BJ6,Scenarios!38:38,Scenarios!40:40) -> 9.829376725 | BK93: =LOOKUP(BK6,Scenarios!38:38,Scenarios!40:40) -> 9.829376725 | BL93: =LOOKUP(BL6,Scenarios!38:38,Scenarios!40:40) -> 9.829376725 | BM93: =LOOKUP(BM6,Scenarios!38:38,Scenarios!40:40) -> 9.829376725 | BN93: =LOOKUP(BN6,Scenarios!38:38,Scenarios!40:40) -> 9.829376725 | BO93: =LOOKUP(BO6,Scenarios!38:38,Scenarios!40:40) -> 9.829376725 | BP93: =LOOKUP(BP6,Scenarios!38:38,Scenarios!40:40) -> 9.829376725 | BQ93: =LOOKUP(BQ6,Scenarios!38:38,Scenarios!40:40) -> 9.829376725 | BR93: =LOOKUP(BR6,Scenarios!38:38,Scenarios!40:40) -> 9.829376725 | BS93: =LOOKUP(BS6,Scenarios!38:38,Scenarios!40:40) -> 9.829376725 | BT93: =LOOKUP(BT6,Scenarios!38:38,Scenarios!40:40) -> 9.829376725 | BU93: =LOOKUP(BU6,Scenarios!38:38,Scenarios!40:40) -> 9.829376725 | BV93: =LOOKUP(BV6,Scenarios!38:38,Scenarios!40:40) -> 9.829376725 | BW93: =LOOKUP(BW6,Scenarios!38:38,Scenarios!40:40) -> 9.829376725 | BX93: =LOOKUP(BX6,Scenarios!38:38,Scenarios!40:40) -> 9.829376725 | BY93: =LOOKUP(BY6,Scenarios!38:38,Scenarios!40:40) -> 9.829376725 | BZ93: =LOOKUP(BZ6,Scenarios!38:38,Scenarios!40:40) -> 9.829376725 | CA93: =LOOKUP(CA6,Scenarios!38:38,Scenarios!40:40) -> 9.976817376 | CB93: =LOOKUP(CB6,Scenarios!38:38,Scenarios!40:40) -> 9.976817376 | CC93: =LOOKUP(CC6,Scenarios!38:38,Scenarios!40:40) -> 9.976817376 | CD93: =LOOKUP(CD6,Scenarios!38:38,Scenarios!40:40) -> 9.976817376 | CE93: =LOOKUP(CE6,Scenarios!38:38,Scenarios!40:40) -> 9.976817376 | CF93: =LOOKUP(CF6,Scenarios!38:38,Scenarios!40:40) -> 9.976817376 | CG93: =LOOKUP(CG6,Scenarios!38:38,Scenarios!40:40) -> 9.976817376 | CH93: =LOOKUP(CH6,Scenarios!38:38,Scenarios!40:40) -> 9.976817376 | CI93: =LOOKUP(CI6,Scenarios!38:38,Scenarios!40:40) -> 9.976817376 | CJ93: =LOOKUP(CJ6,Scenarios!38:38,Scenarios!40:40) -> 9.976817376 | CK93: =LOOKUP(CK6,Scenarios!38:38,Scenarios!40:40) -> 9.976817376 | CL93: =LOOKUP(CL6,Scenarios!38:38,Scenarios!40:40) -> 9.976817376 | CM93: =LOOKUP(CM6,Scenarios!38:38,Scenarios!40:40) -> 9.976817376 | CN93: =LOOKUP(CN6,Scenarios!38:38,Scenarios!40:40) -> 9.976817376 | CO93: =LOOKUP(CO6,Scenarios!38:38,Scenarios!40:40) -> 9.976817376 | CP93: =LOOKUP(CP6,Scenarios!38:38,Scenarios!40:40) -> 9.976817376 | CQ93: =LOOKUP(CQ6,Scenarios!38:38,Scenarios!40:40) -> 9.976817376 | CR93: =LOOKUP(CR6,Scenarios!38:38,Scenarios!40:40) -> 9.976817376 | CS93: =LOOKUP(CS6,Scenarios!38:38,Scenarios!40:40) -> 9.976817376 | CT93: =LOOKUP(CT6,Scenarios!38:38,Scenarios!40:40) -> 9.976817376 | CU93: =LOOKUP(CU6,Scenarios!38:38,Scenarios!40:40) -> 10.12646964
D94: Variable Cost | H94: =H93*H90 -> 3870000 | I94: =I93*I90 -> 4314600 | J94: 4307256 | K94: 4202383.68 | L94: 350198.64 | M94: 350198.64 | N94: 350198.64 | O94: 350198.64 | P94: 350198.64 | Q94: 350198.64 | R94: 350198.64 | S94: 350198.64 | T94: 350198.64 | U94: 350198.64 | V94: 350198.64 | W94: 344666.6667 | X94: 345970.3652 | Y94: 347152.1373 | Z94: 348465.237 | AA94: 349740.7076 | AB94: 351063.5986 | AC94: 352348.5798 | AD94: 353681.3351 | AE94: 355019.1315 | AF94: 356318.591 | AG94: 357666.3628 | AH94: 358975.5118 | AI94: 365738.3333 | AJ94: 366406.9848 | AK94: 367011.9787 | AL94: 367682.9586 | AM94: 368333.462 | AN94: 369006.858 | AO94: 369659.7036 | AP94: 370335.5242 | AQ94: 371012.5803 | AR94: 371668.9745 | AS94: 372348.4685 | AT94: 373007.2261 | AU94: 379294.5042 | AV94: 1143805.911 | AW94: 1149825.455 | AX94: 1155943.352 | AY94: 1179525.207 | AZ94: 1181240.063 | BA94: 1182957.412 | BB94: 1184696.171 | BC94: 1186437.486 | BD94: 1188143.422 | BE94: 1189870.808 | BF94: 1191619.728 | BG94: 1193371.22 | BH94: 1195087.126 | BI94: 1196824.607 | BJ94: 1198583.748 | BK94: 1200345.476 | BL94: 1202071.41 | BM94: 1203819.045 | BN94: 1205588.467 | BO94: 1207360.49 | BP94: 1209115.815 | BQ94: 1210873.691 | BR94: 1212653.482 | BS94: 1214435.89 | BT94: 1216182.084 | BU94: =BU93*BU90 -> 1217950.234 | BV94: 1219740.427 | BW94: 1221533.251 | BX94: 1223289.651 | BY94: 1225068.134 | BZ94: 1226868.789 | CA94: 1247102.172 | CB94: 1248319.979 | CC94: 1249552.527 | CD94: 1250799.856 | CE94: 1252048.43 | CF94: 1253284.659 | CG94: 1254522.108 | CH94: 1255774.398 | CI94: 1257027.938 | CJ94: 1258255.438 | CK94: 1259497.795 | CL94: 1260755.052 | CM94: 1262013.564 | CN94: 1263245.932 | CO94: 1264493.217 | CP94: 1265755.46 | CQ94: 1267018.963 | CR94: 1268256.22 | CS94: 1269508.451 | CT94: 1270775.701 | CU94: 1291124.879
D95: Fixed Cost | H95: =LOOKUP(H6,Scenarios!38:38,Scenarios!42:42)/12*H5 -> 5681218 | I95: =LOOKUP(I6,Scenarios!38:38,Scenarios!42:42)/12*I5 -> 4379472 | J95: =LOOKUP(J6,Scenarios!38:38,Scenarios!42:42)/12*J5 -> 6155587 | K95: =LOOKUP(K6,Scenarios!38:38,Scenarios!42:42)/12*K5 -> 6247983.32 | L95: =LOOKUP(L6,Scenarios!38:38,Scenarios!42:42)/12*L5 -> 520665.2767 | M95: =LOOKUP(M6,Scenarios!38:38,Scenarios!42:42)/12*M5 -> 520665.2767 | N95: =LOOKUP(N6,Scenarios!38:38,Scenarios!42:42)/12*N5 -> 520665.2767 | O95: =LOOKUP(O6,Scenarios!38:38,Scenarios!42:42)/12*O5 -> 520665.2767 | P95: =LOOKUP(P6,Scenarios!38:38,Scenarios!42:42)/12*P5 -> 520665.2767 | Q95: =LOOKUP(Q6,Scenarios!38:38,Scenarios!42:42)/12*Q5 -> 520665.2767 | R95: =LOOKUP(R6,Scenarios!38:38,Scenarios!42:42)/12*R5 -> 520665.2767 | S95: =LOOKUP(S6,Scenarios!38:38,Scenarios!42:42)/12*S5 -> 520665.2767 | T95: =LOOKUP(T6,Scenarios!38:38,Scenarios!42:42)/12*T5 -> 520665.2767 | U95: =LOOKUP(U6,Scenarios!38:38,Scenarios!42:42)/12*U5 -> 520665.2767 | V95: =LOOKUP(V6,Scenarios!38:38,Scenarios!42:42)/12*V5 -> 520665.2767 | W95: =LOOKUP(W6,Scenarios!38:38,Scenarios!42:42)/12*W5 -> 510251.9711 | X95: =LOOKUP(X6,Scenarios!38:38,Scenarios!42:42)/12*X5 -> 510251.9711 | Y95: =LOOKUP(Y6,Scenarios!38:38,Scenarios!42:42)/12*Y5 -> 510251.9711 | Z95: =LOOKUP(Z6,Scenarios!38:38,Scenarios!42:42)/12*Z5 -> 510251.9711 | AA95: =LOOKUP(AA6,Scenarios!38:38,Scenarios!42:42)/12*AA5 -> 510251.9711 | AB95: =LOOKUP(AB6,Scenarios!38:38,Scenarios!42:42)/12*AB5 -> 510251.9711 | AC95: =LOOKUP(AC6,Scenarios!38:38,Scenarios!42:42)/12*AC5 -> 510251.9711 | AD95: =LOOKUP(AD6,Scenarios!38:38,Scenarios!42:42)/12*AD5 -> 510251.9711 | AE95: =LOOKUP(AE6,Scenarios!38:38,Scenarios!42:42)/12*AE5 -> 510251.9711 | AF95: =LOOKUP(AF6,Scenarios!38:38,Scenarios!42:42)/12*AF5 -> 510251.9711 | AG95: =LOOKUP(AG6,Scenarios!38:38,Scenarios!42:42)/12*AG5 -> 510251.9711 | AH95: =LOOKUP(AH6,Scenarios!38:38,Scenarios!42:42)/12*AH5 -> 510251.9711 | AI95: =LOOKUP(AI6,Scenarios!38:38,Scenarios!42:42)/12*AI5 -> 515354.4908 | AJ95: =LOOKUP(AJ6,Scenarios!38:38,Scenarios!42:42)/12*AJ5 -> 515354.4908 | AK95: =LOOKUP(AK6,Scenarios!38:38,Scenarios!42:42)/12*AK5 -> 515354.4908 | AL95: =LOOKUP(AL6,Scenarios!38:38,Scenarios!42:42)/12*AL5 -> 515354.4908 | AM95: =LOOKUP(AM6,Scenarios!38:38,Scenarios!42:42)/12*AM5 -> 515354.4908 | AN95: =LOOKUP(AN6,Scenarios!38:38,Scenarios!42:42)/12*AN5 -> 515354.4908 | AO95: =LOOKUP(AO6,Scenarios!38:38,Scenarios!42:42)/12*AO5 -> 515354.4908 | AP95: =LOOKUP(AP6,Scenarios!38:38,Scenarios!42:42)/12*AP5 -> 515354.4908 | AQ95: =LOOKUP(AQ6,Scenarios!38:38,Scenarios!42:42)/12*AQ5 -> 515354.4908 | AR95: =LOOKUP(AR6,Scenarios!38:38,Scenarios!42:42)/12*AR5 -> 515354.4908 | AS95: =LOOKUP(AS6,Scenarios!38:38,Scenarios!42:42)/12*AS5 -> 515354.4908 | AT95: =LOOKUP(AT6,Scenarios!38:38,Scenarios!42:42)/12*AT5 -> 515354.4908 | AU95: =LOOKUP(AU6,Scenarios!38:38,Scenarios!42:42)/12*AU5 -> 520508.0358 | AV95: =LOOKUP(AV6,Scenarios!38:38,Scenarios!42:42)/12*AV5 -> 1561524.107 | AW95: =LOOKUP(AW6,Scenarios!38:38,Scenarios!42:42)/12*AW5 -> 1561524.107 | AX95: =LOOKUP(AX6,Scenarios!38:38,Scenarios!42:42)/12*AX5 -> 1561524.107 | AY95: =LOOKUP(AY6,Scenarios!38:38,Scenarios!42:42)/12*AY5 -> 1577139.348 | AZ95: =LOOKUP(AZ6,Scenarios!38:38,Scenarios!42:42)/12*AZ5 -> 1577139.348 | BA95: =LOOKUP(BA6,Scenarios!38:38,Scenarios!42:42)/12*BA5 -> 1577139.348 | BB95: =LOOKUP(BB6,Scenarios!38:38,Scenarios!42:42)/12*BB5 -> 1577139.348 | BC95: =LOOKUP(BC6,Scenarios!38:38,Scenarios!42:42)/12*BC5 -> 1577139.348 | BD95: =LOOKUP(BD6,Scenarios!38:38,Scenarios!42:42)/12*BD5 -> 1577139.348 | BE95: =LOOKUP(BE6,Scenarios!38:38,Scenarios!42:42)/12*BE5 -> 1577139.348 | BF95: =LOOKUP(BF6,Scenarios!38:38,Scenarios!42:42)/12*BF5 -> 1577139.348 | BG95: =LOOKUP(BG6,Scenarios!38:38,Scenarios!42:42)/12*BG5 -> 1577139.348 | BH95: =LOOKUP(BH6,Scenarios!38:38,Scenarios!42:42)/12*BH5 -> 1577139.348 | BI95: =LOOKUP(BI6,Scenarios!38:38,Scenarios!42:42)/12*BI5 -> 1577139.348 | BJ95: =LOOKUP(BJ6,Scenarios!38:38,Scenarios!42:42)/12*BJ5 -> 1577139.348 | BK95: =LOOKUP(BK6,Scenarios!38:38,Scenarios!42:42)/12*BK5 -> 1577139.348 | BL95: =LOOKUP(BL6,Scenarios!38:38,Scenarios!42:42)/12*BL5 -> 1577139.348 | BM95: =LOOKUP(BM6,Scenarios!38:38,Scenarios!42:42)/12*BM5 -> 1577139.348 | BN95: =LOOKUP(BN6,Scenarios!38:38,Scenarios!42:42)/12*BN5 -> 1577139.348 | BO95: =LOOKUP(BO6,Scenarios!38:38,Scenarios!42:42)/12*BO5 -> 1577139.348 | BP95: =LOOKUP(BP6,Scenarios!38:38,Scenarios!42:42)/12*BP5 -> 1577139.348 | BQ95: =LOOKUP(BQ6,Scenarios!38:38,Scenarios!42:42)/12*BQ5 -> 1577139.348 | BR95: =LOOKUP(BR6,Scenarios!38:38,Scenarios!42:42)/12*BR5 -> 1577139.348 | BS95: =LOOKUP(BS6,Scenarios!38:38,Scenarios!42:42)/12*BS5 -> 1577139.348 | BT95: =LOOKUP(BT6,Scenarios!38:38,Scenarios!42:42)/12*BT5 -> 1577139.348 | BU95: =LOOKUP(BU6,Scenarios!38:38,Scenarios!42:42)/12*BU5 -> 1577139.348 | BV95: =LOOKUP(BV6,Scenarios!38:38,Scenarios!42:42)/12*BV5 -> 1577139.348 | BW95: =LOOKUP(BW6,Scenarios!38:38,Scenarios!42:42)/12*BW5 -> 1577139.348 | BX95: =LOOKUP(BX6,Scenarios!38:38,Scenarios!42:42)/12*BX5 -> 1577139.348 | BY95: =LOOKUP(BY6,Scenarios!38:38,Scenarios!42:42)/12*BY5 -> 1577139.348 | BZ95: =LOOKUP(BZ6,Scenarios!38:38,Scenarios!42:42)/12*BZ5 -> 1577139.348 | CA95: =LOOKUP(CA6,Scenarios!38:38,Scenarios!42:42)/12*CA5 -> 1592910.742 | CB95: =LOOKUP(CB6,Scenarios!38:38,Scenarios!42:42)/12*CB5 -> 1592910.742 | CC95: =LOOKUP(CC6,Scenarios!38:38,Scenarios!42:42)/12*CC5 -> 1592910.742 | CD95: =LOOKUP(CD6,Scenarios!38:38,Scenarios!42:42)/12*CD5 -> 1592910.742 | CE95: =LOOKUP(CE6,Scenarios!38:38,Scenarios!42:42)/12*CE5 -> 1592910.742 | CF95: =LOOKUP(CF6,Scenarios!38:38,Scenarios!42:42)/12*CF5 -> 1592910.742 | CG95: =LOOKUP(CG6,Scenarios!38:38,Scenarios!42:42)/12*CG5 -> 1592910.742 | CH95: =LOOKUP(CH6,Scenarios!38:38,Scenarios!42:42)/12*CH5 -> 1592910.742 | CI95: =LOOKUP(CI6,Scenarios!38:38,Scenarios!42:42)/12*CI5 -> 1592910.742 | CJ95: =LOOKUP(CJ6,Scenarios!38:38,Scenarios!42:42)/12*CJ5 -> 1592910.742 | CK95: =LOOKUP(CK6,Scenarios!38:38,Scenarios!42:42)/12*CK5 -> 1592910.742 | CL95: =LOOKUP(CL6,Scenarios!38:38,Scenarios!42:42)/12*CL5 -> 1592910.742 | CM95: =LOOKUP(CM6,Scenarios!38:38,Scenarios!42:42)/12*CM5 -> 1592910.742 | CN95: =LOOKUP(CN6,Scenarios!38:38,Scenarios!42:42)/12*CN5 -> 1592910.742 | CO95: =LOOKUP(CO6,Scenarios!38:38,Scenarios!42:42)/12*CO5 -> 1592910.742 | CP95: =LOOKUP(CP6,Scenarios!38:38,Scenarios!42:42)/12*CP5 -> 1592910.742 | CQ95: =LOOKUP(CQ6,Scenarios!38:38,Scenarios!42:42)/12*CQ5 -> 1592910.742 | CR95: =LOOKUP(CR6,Scenarios!38:38,Scenarios!42:42)/12*CR5 -> 1592910.742 | CS95: =LOOKUP(CS6,Scenarios!38:38,Scenarios!42:42)/12*CS5 -> 1592910.742 | CT95: =LOOKUP(CT6,Scenarios!38:38,Scenarios!42:42)/12*CT5 -> 1592910.742 | CU95: =LOOKUP(CU6,Scenarios!38:38,Scenarios!42:42)/12*CU5 -> 1608839.849
D96: Operating Cost | H96: =H94+H95 -> 9551218 | I96: =I94+I95 -> 8694072 | J96: 10462843 | K96: 10450367 | L96: 870863.9167 | M96: 870863.9167 | N96: 870863.9167 | O96: 870863.9167 | P96: 870863.9167 | Q96: 870863.9167 | R96: 870863.9167 | S96: 870863.9167 | T96: 870863.9167 | U96: 870863.9167 | V96: 870863.9167 | W96: 854918.6378 | X96: 856222.3363 | Y96: 857404.1084 | Z96: 858717.2082 | AA96: 859992.6787 | AB96: 861315.5697 | AC96: 862600.551 | AD96: 863933.3062 | AE96: 865271.1026 | AF96: 866570.5621 | AG96: 867918.3339 | AH96: 869227.4829 | AI96: 881092.8242 | AJ96: 881761.4756 | AK96: 882366.4695 | AL96: 883037.4495 | AM96: 883687.9529 | AN96: 884361.3488 | AO96: 885014.1944 | AP96: 885690.015 | AQ96: 886367.0712 | AR96: 887023.4653 | AS96: 887702.9593 | AT96: 888361.7169 | AU96: 899802.5399 | AV96: 2705330.018 | AW96: 2711349.562 | AX96: 2717467.459 | AY96: 2756664.555 | AZ96: 2758379.411 | BA96: 2760096.76 | BB96: 2761835.519 | BC96: 2763576.834 | BD96: 2765282.771 | BE96: 2767010.156 | BF96: 2768759.077 | BG96: 2770510.568 | BH96: 2772226.474 | BI96: 2773963.955 | BJ96: 2775723.097 | BK96: 2777484.824 | BL96: 2779210.758 | BM96: 2780958.393 | BN96: 2782727.816 | BO96: 2784499.839 | BP96: 2786255.163 | BQ96: 2788013.039 | BR96: 2789792.831 | BS96: 2791575.238 | BT96: 2793321.433 | BU96: =BU94+BU95 -> 2795089.582 | BV96: 2796879.775 | BW96: 2798672.6 | BX96: 2800428.999 | BY96: 2802207.482 | BZ96: 2804008.137 | CA96: 2840012.914 | CB96: 2841230.721 | CC96: 2842463.269 | CD96: 2843710.598 | CE96: 2844959.172 | CF96: 2846195.401 | CG96: 2847432.85 | CH96: 2848685.14 | CI96: 2849938.68 | CJ96: 2851166.18 | CK96: 2852408.537 | CL96: 2853665.794 | CM96: 2854924.306 | CN96: 2856156.674 | CO96: 2857403.959 | CP96: 2858666.202 | CQ96: 2859929.705 | CR96: 2861166.961 | CS96: 2862419.193 | CT96: 2863686.443 | CU96: 2899964.728
D98: EBITDA | H98: =H91-H96 -> 2394776 | I98: =I91-I96 -> 6073863 | J98: 3872983 | K98: 1611899 | L98: 17673.05198 | M98: 26004.16964 | N98: 34996.24667 | O98: 43784.08736 | P98: 52954.42739 | Q98: 61916.4822 | R98: 71268.61918 | S98: 80714.5215 | T98: 89945.87979 | U98: 99579.04194 | V98: 108993.4068 | W98: 134762.82 | X98: 143376.1032 | Y98: 151122.1756 | Z98: 159786.5161 | AA98: 168260.6057 | AB98: 177110.3158 | AC98: 185765.5983 | AD98: 194804.4226 | AE98: 203940.8126 | AF98: 212876.3142 | AG98: 222207.6063 | AH98: 231333.6164 | AI98: 230356.2239 | AJ98: 240985.0181 | AK98: 250758.4917 | AL98: 261689.9006 | AM98: 272380.6166 | AN98: 283544.5357 | AO98: 294462.5474 | AP98: 305863.7247 | AQ98: 317387.3263 | AR98: 328656.9534 | AS98: 340425.1571 | AT98: 351933.8998 | AU98: 353192.8165 | AV98: 1157734.731 | AW98: 1259783.415 | AX98: 1365994.817 | AY98: 1442304.418 | AZ98: 1533650.549 | BA98: 1626965.349 | BB98: 1723442.189 | BC98: 1822115.28 | BD98: 1941508.817 | BE98: 2065720.183 | BF98: 2194719.757 | BG98: 2327254.134 | BH98: 2392522.085 | BI98: 2458631.184 | BJ98: 2526370.242 | BK98: 2595029.775 | BL98: 2601714.556 | BM98: 2607789.994 | BN98: 2613941.174 | BO98: 2620101.395 | BP98: 2626203.565 | BQ98: 2632314.606 | BR98: 2638501.833 | BS98: 2644698.154 | BT98: 2650768.586 | BU98: =BU91-BU96 -> 2656915.341 | BV98: 2663138.727 | BW98: 2669371.261 | BX98: 2675477.169 | BY98: 2681659.847 | BZ98: 2687919.603 | CA98: 2659987.086 | CB98: 2664140.082 | CC98: 2668343.345 | CD98: 2672597.017 | CE98: 2676854.934 | CF98: 2681070.752 | CG98: 2685290.732 | CH98: 2689561.321 | CI98: 2693836.173 | CJ98: 2698022.222 | CK98: 2702258.939 | CL98: 2706546.466 | CM98: 2710838.273 | CN98: 2715040.925 | CO98: 2719294.446 | CP98: 2723598.978 | CQ98: 2727907.807 | CR98: 2732127.128 | CS98: 2736397.519 | CT98: 2740719.124 | CU98: 2710035.272
C100: Capital Expeditures and Depreciation
D101: Depreciation Rate | E101: =F101/1000 -> 0.053 | F101: 53 | H101: =IF(H2,H75,$E$101/12*H5) -> 0.04715751117 | I101: 0.05161870985 | J101: 0.04775190731 | K101: 0.05355782197 | L101: 0.004416666667 | M101: 0.004416666667 | N101: 0.004416666667 | O101: 0.004416666667 | P101: 0.004416666667 | Q101: 0.004416666667 | R101: 0.004416666667 | S101: 0.004416666667 | T101: 0.004416666667 | U101: 0.004416666667 | V101: 0.004416666667 | W101: 0.004416666667 | X101: 0.004416666667 | Y101: 0.004416666667 | Z101: 0.004416666667 | AA101: 0.004416666667 | AB101: 0.004416666667 | AC101: 0.004416666667 | AD101: 0.004416666667 | AE101: 0.004416666667 | AF101: 0.004416666667 | AG101: 0.004416666667 | AH101: 0.004416666667 | AI101: 0.004416666667 | AJ101: 0.004416666667 | AK101: 0.004416666667 | AL101: 0.004416666667 | AM101: 0.004416666667 | AN101: =IF(AN2,AN75,$E$101/12*AN5) -> 0.004416666667 | AO101: 0.004416666667 | AP101: 0.004416666667 | AQ101: 0.004416666667 | AR101: 0.004416666667 | AS101: 0.004416666667 | AT101: 0.004416666667 | AU101: 0.004416666667 | AV101: 0.01325 | AW101: 0.01325 | AX101: 0.01325 | AY101: 0.01325 | AZ101: 0.01325 | BA101: 0.01325 | BB101: 0.01325 | BC101: 0.01325 | BD101: 0.01325 | BE101: 0.01325 | BF101: 0.01325 | BG101: 0.01325 | BH101: 0.01325 | BI101: 0.01325 | BJ101: 0.01325 | BK101: 0.01325 | BL101: 0.01325 | BM101: 0.01325 | BN101: 0.01325 | BO101: 0.01325 | BP101: 0.01325 | BQ101: 0.01325 | BR101: 0.01325 | BS101: 0.01325 | BT101: =IF(BT2,BT75,$E$101/12*BT5) -> 0.01325 | BU101: 0.01325 | BV101: 0.01325 | BW101: 0.01325 | BX101: 0.01325 | BY101: 0.01325 | BZ101: 0.01325 | CA101: 0.01325 | CB101: 0.01325 | CC101: 0.01325 | CD101: 0.01325 | CE101: 0.01325 | CF101: 0.01325 | CG101: 0.01325 | CH101: 0.01325 | CI101: 0.01325 | CJ101: 0.01325 | CK101: 0.01325 | CL101: 0.01325 | CM101: 0.01325 | CN101: 0.01325 | CO101: 0.01325 | CP101: 0.01325 | CQ101: 0.01325 | CR101: 0.01325 | CS101: 0.01325 | CT101: 0.01325 | CU101: 0.01325
D102: Depreciaiton Expense | H102: =IF(H2,H110,H101*H108) -> 1119172 | I102: 1225048 | J102: 1136234 | K102: 1206013 | L102: 103975.2542 | M102: 104067.0991 | N102: 104159.025 | O102: 104251.0321 | P102: 104343.1205 | Q102: 104435.2903 | R102: 104527.5415 | S102: 104619.8741 | T102: 104712.2884 | U102: 104804.7842 | V102: 104897.3618 | W102: 104990.0211 | X102: 105082.7623 | Y102: 105175.5854 | Z102: 105268.4905 | AA102: 105361.4777 | AB102: 105454.547 | AC102: 105547.6985 | AD102: 105640.9323 | AE102: 105734.2484 | AF102: 105827.647 | AG102: 105921.1281 | AH102: 106014.6918 | AI102: 106108.3381 | AJ102: 106202.0671 | AK102: 106295.879 | AL102: 106389.7736 | AM102: 106483.7513 | AN102: =IF(AN2,AN110,AN101*AN108) -> 106577.8119 | AO102: 106671.9557 | AP102: 106766.1826 | AQ102: 106860.4927 | AR102: 106954.8861 | AS102: 107049.3629 | AT102: 107143.9232 | AU102: 107238.567 | AV102: 321999.8832 | AW102: 322853.1829 | AX102: 323708.7438 | AY102: 324566.572 | AZ102: 325426.6734 | BA102: 326289.0541 | BB102: 327153.7201 | BC102: 328020.6775 | BD102: 328889.9323 | BE102: 329761.4906 | BF102: 330635.3585 | BG102: 331511.5422 | BH102: 332390.0478 | BI102: 333270.8814 | BJ102: 334154.0493 | BK102: 335039.5575 | BL102: 335927.4123 | BM102: 336817.62 | BN102: 337710.1867 | BO102: 338605.1187 | BP102: 339502.4222 | BQ102: 340402.1037 | BR102: 341304.1692 | BS102: 342208.6253 | BT102: =IF(BT2,BT110,BT101*BT108) -> 343115.4781 | BU102: 344024.7341 | BV102: 344936.3997 | BW102: 345850.4812 | BX102: 346766.9849 | BY102: 347685.9174 | BZ102: 348607.2851 | CA102: 349531.0944 | CB102: 350457.3518 | CC102: 351386.0638 | CD102: 352317.2369 | CE102: 353250.8776 | CF102: 354186.9924 | CG102: 355125.5879 | CH102: 356066.6707 | CI102: 357010.2474 | CJ102: 357956.3246 | CK102: 358904.9088 | CL102: 359856.0068 | CM102: 360809.6252 | CN102: 361765.7707 | CO102: 362724.45 | CP102: 363685.6698 | CQ102: 364649.4369 | CR102: 365615.7579 | CS102: 366584.6396 | CT102: 367556.0889 | CU102: 368530.1126
D104: Capital Expenditures to Depreciation | E104: =F104/100 -> 1.2 | F104: 120 | H104: =IF(H2,H74,$E$104) -> 0 | I104: 1.050521286 | J104: -0.1235044894 | K104: 1.848751216 | L104: 1.2 | M104: 1.2 | N104: 1.2 | O104: 1.2 | P104: 1.2 | Q104: 1.2 | R104: 1.2 | S104: 1.2 | T104: 1.2 | U104: 1.2 | V104: 1.2 | W104: 1.2 | X104: 1.2 | Y104: 1.2 | Z104: 1.2 | AA104: 1.2 | AB104: 1.2 | AC104: 1.2 | AD104: 1.2 | AE104: 1.2 | AF104: 1.2 | AG104: 1.2 | AH104: 1.2 | AI104: 1.2 | AJ104: 1.2 | AK104: 1.2 | AL104: 1.2 | AM104: 1.2 | AN104: =IF(AN2,AN74,$E$104) -> 1.2 | AO104: 1.2 | AP104: 1.2 | AQ104: 1.2 | AR104: 1.2 | AS104: 1.2 | AT104: 1.2 | AU104: 1.2 | AV104: 1.2 | AW104: 1.2 | AX104: 1.2 | AY104: 1.2 | AZ104: 1.2 | BA104: 1.2 | BB104: 1.2 | BC104: 1.2 | BD104: 1.2 | BE104: 1.2 | BF104: 1.2 | BG104: 1.2 | BH104: 1.2 | BI104: 1.2 | BJ104: 1.2 | BK104: 1.2 | BL104: 1.2 | BM104: 1.2 | BN104: 1.2 | BO104: 1.2 | BP104: 1.2 | BQ104: 1.2 | BR104: 1.2 | BS104: 1.2 | BT104: =IF(BT2,BT74,$E$104) -> 1.2 | BU104: 1.2 | BV104: 1.2 | BW104: 1.2 | BX104: 1.2 | BY104: 1.2 | BZ104: 1.2 | CA104: 1.2 | CB104: 1.2 | CC104: 1.2 | CD104: 1.2 | CE104: 1.2 | CF104: 1.2 | CG104: 1.2 | CH104: 1.2 | CI104: 1.2 | CJ104: 1.2 | CK104: 1.2 | CL104: 1.2 | CM104: 1.2 | CN104: 1.2 | CO104: 1.2 | CP104: 1.2 | CQ104: 1.2 | CR104: 1.2 | CS104: 1.2 | CT104: 1.2 | CU104: 1.2
D105: Capital Expenditures | H105: =IF(H2,H109,H104*H102) -> 0 | I105: 61891 | J105: -1276564 | K105: 1023605 | L105: 124770.3051 | M105: 124880.5189 | N105: 124990.83 | O105: 125101.2386 | P105: 125211.7447 | Q105: 125322.3484 | R105: 125433.0498 | S105: 125543.849 | T105: 125654.746 | U105: 125765.7411 | V105: 125876.8341 | W105: 125988.0253 | X105: 126099.3148 | Y105: 126210.7025 | Z105: 126322.1886 | AA105: 126433.7732 | AB105: 126545.4564 | AC105: 126657.2382 | AD105: 126769.1187 | AE105: 126881.0981 | AF105: 126993.1764 | AG105: 127105.3537 | AH105: 127217.6301 | AI105: 127330.0057 | AJ105: 127442.4806 | AK105: 127555.0547 | AL105: 127667.7284 | AM105: 127780.5015 | AN105: =IF(AN2,AN109,AN104*AN102) -> 127893.3743 | AO105: 128006.3468 | AP105: 128119.4191 | AQ105: 128232.5912 | AR105: 128345.8633 | AS105: 128459.2355 | AT105: 128572.7078 | AU105: 128686.2804 | AV105: 386399.8599 | AW105: 387423.8195 | AX105: 388450.4926 | AY105: 389479.8864 | AZ105: 390512.0081 | BA105: 391546.8649 | BB105: 392584.4641 | BC105: 393624.813 | BD105: 394667.9187 | BE105: 395713.7887 | BF105: 396762.4302 | BG105: 397813.8507 | BH105: 398868.0574 | BI105: 399925.0577 | BJ105: 400984.8591 | BK105: 402047.469 | BL105: 403112.8948 | BM105: 404181.144 | BN105: 405252.224 | BO105: 406326.1424 | BP105: 407402.9067 | BQ105: 408482.5244 | BR105: 409565.0031 | BS105: 410650.3503 | BT105: =IF(BT2,BT109,BT104*BT102) -> 411738.5738 | BU105: 412829.681 | BV105: 413923.6796 | BW105: 415020.5774 | BX105: 416120.3819 | BY105: 417223.1009 | BZ105: 418328.7421 | CA105: 419437.3133 | CB105: 420548.8222 | CC105: 421663.2766 | CD105: 422780.6843 | CE105: 423901.0531 | CF105: 425024.3909 | CG105: 426150.7055 | CH105: 427280.0049 | CI105: 428412.2969 | CJ105: 429547.5895 | CK105: 430685.8906 | CL105: 431827.2082 | CM105: 432971.5503 | CN105: 434118.9249 | CO105: 435269.34 | CP105: 436422.8038 | CQ105: 437579.3242 | CR105: 438738.9094 | CS105: 439901.5675 | CT105: 441067.3067 | CU105: 442236.1351
C107: Other Asset Balance
D108: Opening Balance | H108: =G111 -> 0 | I108: =H111 -> 23732635 | J108: 23794526 | K108: 22517962 | L108: 23541567 | M108: 23562362.05 | N108: 23583175.47 | O108: 23604007.28 | P108: 23624857.48 | Q108: 23645726.11 | R108: 23666613.16 | S108: 23687518.67 | T108: 23708442.65 | U108: 23729385.11 | V108: 23750346.06 | W108: 23771325.53 | X108: 23792323.54 | Y108: 23813340.09 | Z108: 23834375.21 | AA108: 23855428.91 | AB108: 23876501.2 | AC108: 23897592.11 | AD108: 23918701.65 | AE108: 23939829.84 | AF108: 23960976.69 | AG108: 23982142.22 | AH108: 24003326.44 | AI108: 24024529.38 | AJ108: 24045751.05 | AK108: 24066991.46 | AL108: 24088250.64 | AM108: 24109528.59 | AN108: 24130825.34 | AO108: 24152140.9 | AP108: 24173475.3 | AQ108: 24194828.53 | AR108: 24216200.63 | AS108: 24237591.61 | AT108: 24259001.48 | AU108: 24280430.27 | AV108: 24301877.98 | AW108: 24366277.96 | AX108: 24430848.59 | AY108: 24495590.34 | AZ108: 24560503.65 | BA108: 24625588.99 | BB108: 24690846.8 | BC108: 24756277.54 | BD108: 24821881.68 | BE108: 24887659.67 | BF108: 24953611.96 | BG108: 25019739.04 | BH108: 25086041.34 | BI108: 25152519.35 | BJ108: 25219173.53 | BK108: 25286004.34 | BL108: 25353012.25 | BM108: 25420197.73 | BN108: 25487561.26 | BO108: 25555103.3 | BP108: 25622824.32 | BQ108: 25690724.8 | BR108: 25758805.22 | BS108: 25827066.06 | BT108: 25895507.78 | BU108: =BT111 -> 25964130.88 | BV108: 26032935.83 | BW108: 26101923.11 | BX108: 26171093.2 | BY108: 26240446.6 | BZ108: 26309983.78 | CA108: 26379705.24 | CB108: 26449611.46 | CC108: 26519702.93 | CD108: 26589980.14 | CE108: 26660443.59 | CF108: 26731093.76 | CG108: 26801931.16 | CH108: 26872956.28 | CI108: 26944169.61 | CJ108: 27015571.66 | CK108: 27087162.93 | CL108: 27158943.91 | CM108: 27230915.11 | CN108: 27303077.04 | CO108: 27375430.19 | CP108: 27447975.08 | CQ108: 27520712.22 | CR108: 27593642.1 | CS108: 27666765.25 | CT108: 27740082.18 | CU108: 27813593.4
D109: Add: Capital Expenditure | I109: =IF(I2,I111-I108,I105) -> 61891 | J109: -1276564 | K109: 1023605 | L109: 124770.3051 | M109: 124880.5189 | N109: 124990.83 | O109: 125101.2386 | P109: 125211.7447 | Q109: 125322.3484 | R109: 125433.0498 | S109: 125543.849 | T109: 125654.746 | U109: 125765.7411 | V109: 125876.8341 | W109: 125988.0253 | X109: 126099.3148 | Y109: 126210.7025 | Z109: 126322.1886 | AA109: 126433.7732 | AB109: 126545.4564 | AC109: 126657.2382 | AD109: 126769.1187 | AE109: 126881.0981 | AF109: 126993.1764 | AG109: 127105.3537 | AH109: 127217.6301 | AI109: 127330.0057 | AJ109: 127442.4806 | AK109: 127555.0547 | AL109: 127667.7284 | AM109: 127780.5015 | AN109: 127893.3743 | AO109: =IF(AO2,AO111-AO108,AO105) -> 128006.3468 | AP109: 128119.4191 | AQ109: 128232.5912 | AR109: 128345.8633 | AS109: 128459.2355 | AT109: 128572.7078 | AU109: 128686.2804 | AV109: 386399.8599 | AW109: 387423.8195 | AX109: 388450.4926 | AY109: 389479.8864 | AZ109: 390512.0081 | BA109: 391546.8649 | BB109: 392584.4641 | BC109: 393624.813 | BD109: 394667.9187 | BE109: 395713.7887 | BF109: 396762.4302 | BG109: 397813.8507 | BH109: 398868.0574 | BI109: 399925.0577 | BJ109: 400984.8591 | BK109: 402047.469 | BL109: 403112.8948 | BM109: 404181.144 | BN109: 405252.224 | BO109: 406326.1424 | BP109: 407402.9067 | BQ109: 408482.5244 | BR109: 409565.0031 | BS109: 410650.3503 | BT109: 411738.5738 | BU109: =IF(BU2,BU111-BU108,BU105) -> 412829.681 | BV109: 413923.6796 | BW109: 415020.5774 | BX109: 416120.3819 | BY109: 417223.1009 | BZ109: 418328.7421 | CA109: 419437.3133 | CB109: 420548.8222 | CC109: 421663.2766 | CD109: 422780.6843 | CE109: 423901.0531 | CF109: 425024.3909 | CG109: 426150.7055 | CH109: 427280.0049 | CI109: 428412.2969 | CJ109: 429547.5895 | CK109: 430685.8906 | CL109: 431827.2082 | CM109: 432971.5503 | CN109: 434118.9249 | CO109: 435269.34 | CP109: 436422.8038 | CQ109: 437579.3242 | CR109: 438738.9094 | CS109: 439901.5675 | CT109: 441067.3067 | CU109: 442236.1351
D110: Less: Deprecaition | H110: =IF(H2,H15,H102) -> 1119172 | I110: 1225048 | J110: 1136234 | K110: 1206013 | L110: 103975.2542 | M110: 104067.0991 | N110: 104159.025 | O110: 104251.0321 | P110: 104343.1205 | Q110: 104435.2903 | R110: 104527.5415 | S110: 104619.8741 | T110: 104712.2884 | U110: 104804.7842 | V110: 104897.3618 | W110: 104990.0211 | X110: 105082.7623 | Y110: 105175.5854 | Z110: 105268.4905 | AA110: 105361.4777 | AB110: 105454.547 | AC110: 105547.6985 | AD110: 105640.9323 | AE110: 105734.2484 | AF110: 105827.647 | AG110: 105921.1281 | AH110: 106014.6918 | AI110: 106108.3381 | AJ110: 106202.0671 | AK110: 106295.879 | AL110: 106389.7736 | AM110: 106483.7513 | AN110: =IF(AN2,AN15,AN102) -> 106577.8119 | AO110: 106671.9557 | AP110: 106766.1826 | AQ110: 106860.4927 | AR110: 106954.8861 | AS110: 107049.3629 | AT110: 107143.9232 | AU110: 107238.567 | AV110: 321999.8832 | AW110: 322853.1829 | AX110: 323708.7438 | AY110: 324566.572 | AZ110: 325426.6734 | BA110: 326289.0541 | BB110: 327153.7201 | BC110: 328020.6775 | BD110: 328889.9323 | BE110: 329761.4906 | BF110: 330635.3585 | BG110: 331511.5422 | BH110: 332390.0478 | BI110: 333270.8814 | BJ110: 334154.0493 | BK110: 335039.5575 | BL110: 335927.4123 | BM110: 336817.62 | BN110: 337710.1867 | BO110: 338605.1187 | BP110: 339502.4222 | BQ110: 340402.1037 | BR110: 341304.1692 | BS110: 342208.6253 | BT110: =IF(BT2,BT15,BT102) -> 343115.4781 | BU110: 344024.7341 | BV110: 344936.3997 | BW110: 345850.4812 | BX110: 346766.9849 | BY110: 347685.9174 | BZ110: 348607.2851 | CA110: 349531.0944 | CB110: 350457.3518 | CC110: 351386.0638 | CD110: 352317.2369 | CE110: 353250.8776 | CF110: 354186.9924 | CG110: 355125.5879 | CH110: 356066.6707 | CI110: 357010.2474 | CJ110: 357956.3246 | CK110: 358904.9088 | CL110: 359856.0068 | CM110: 360809.6252 | CN110: 361765.7707 | CO110: 362724.45 | CP110: 363685.6698 | CQ110: 364649.4369 | CR110: 365615.7579 | CS110: 366584.6396 | CT110: 367556.0889 | CU110: 368530.1126
